{"text_format":"1","workbook":"xlsx","n_sheets":12,"sheets":["Instructions","Project","Unit","Wind","Solar & Storage","Step Up","Main & Other Transformers","Breaker","Line","Protection","Drawings","Sealing"],"not_rendered":{"charts":0,"images":2,"macros":1,"external_links":0,"defined_names":11,"comments":0,"pivot_tables":0},"unopened":[],"bounds":{"document_bytes":16777216,"sheet_cells":100000,"rows_first":2000,"rows_last":500,"rows_between":2000,"halvings":0,"cell_chars":16384,"cell_head_chars":4096},"cells_cut":0,"cells_raw":0,"read":"whole","date_system":"1900"}

{"sheet":"Instructions","index":0,"n_rows":22,"n_cols":6,"rows_kept":22,"cut":false,"hidden":false,"merged":[[15,3,15,4],[16,3,16,4],[12,3,12,5],[5,1,5,2],[5,3,5,5],[7,1,7,2],[7,3,7,5],[10,3,10,5],[11,3,11,5]]}
[null,null,null,null,null,"Interconnection Request - Generator Interconnection Data Form"]
[null,null,null,null,null,"Transmission Voltages 60 kV to 500 kV"]
[null,null,null,null,null,"Form Version: 1.1"]
[]
[]
[null,"Form Description & OATT Applicability:",null,"The Interconnection Request – Generator Interconnection Data Form is the submission form as described in BC Hydro’s Open Access Transmission Tariff (OATT), Attachment M-1, Attachment A, Appendix 1: \n\"Interconnection Customers must submit the applicable data submission form provided in the Transmission Provider’s Business Practices identified to be submitted as Attachment A to Appendix 1 Interconnection Request.\"   \nThe information submitted to BC Hydro by the Interconnection Customer on the Interconnection Request – Generator Interconnection Data Form will be used to validate the Interconnection Request. If applicable, the data will also be used to complete a Feasibility Study upon the execution of a Feasibility Study Agreement and BC Hydro's receipt of applicable deposits."]
[]
[null,"Information / Model Requirements & Guides:",null,"Information submitted is required to comply with technical requirements as per BC Hydro’s 60 kV to 500 kV Technical Interconnection Requirements (TIR) for Power Generators document, available on BC Hydro’s website, bchydro.com.\n\nThere are additional references to specific, industry-standard requirements, some of which are listed below – these requirements must be followed as per the latest revision made available at the time of the Interconnection Request.\n\n1. WECC Wind Power Plant Power Flow Modeling Guide – available at wecc.org\n2. WECC Solar Photovoltaic Power Plant Modeling and Validation Guideline – available at wecc.org\n3. NERC's Reliability Standards - available at nerc.com\n4. FERC Order 842 – available at ferc.gov\n5. Additional supporting documents from WECC - available at wecc.org"]
[]
[null,"How to Complete the Interconnection Request - Generator Interconnection Data Form"]
[null,null,"Required Information:","All orange fields are required to be filled out by Interconnection Customer, if applicable - do not leave any orange fields blank. Write N/A (not applicable) for required fields which are not applicable to the Interconnection Request.  \n\nIn sections 4 - 10, Interconnection Customer is to provide information for each piece of equipment planned as part of the Interconnection Request’s facility to be interconnected. For example, if the Interconnection Request is for three hydro generating units, the required fields on the “Unit” tab under the columns “Unit 1”, “Unit 2”, and “Unit 3” should be completed for each unit respectively, and all other required fields in columns designated for Units 4-10 are to be filled with “N/A”."]
[null,null,"Optional Information:","White (uncoloured) fields are intended for additional information which is encouraged to be provided but is not required."]
[null,null,"Attaching Files:","Do not insert a file into the form; attached files are to be submitted as per the submission instructions described below. For fields where the information is provided in an attached file, write the file name of the attachment where the cell’s information is to be found.  "]
[]
[null,"Submission Instructions"]
[null,null,"Competitive Electricity Acquisition Process (CEAP)\n(Interconnection Process for Calls for Power)","The completed Interconnection Request - Generator Interconnection Data Form and the additional files requested within it, are to be submitted in conjunction with a completed Interconnection Request for a Generating Facility form. These files should be submitted to BC Hydro as per the instructions for the applicable CEAP as described on BC Hydro's website (see provided link)",null,"Competitive electricity acquisition processes (CEAP)"]
[null,null,"Standard Generator Interconnection Procedures (SGIP) ","The completed Interconnection Request - Generator Interconnection Data Form and the additional files requested within it, are to be submitted in conjunction with a completed Interconnection Request for a Generating Facility form. These files should be submitted to BC Hydro as per the instructions described on the Transmission Generator Interconnections webpage.",null,"Transmission Generator Interconnections"]
[]
[null,null,"Version History"]
[null,null,"Version #","Date","Update Summary"]
[null,null,1,"2025-06-11","Original Version - Replaced previous 'Feasibility Study Data Form' / GIDF-FeS-1003 form"]
[null,null,1.1000000000000001,"2025-05-01","Removed additional text from item 3.04."]

{"sheet":"Project","index":1,"n_rows":54,"n_cols":17,"rows_kept":54,"cut":false,"hidden":false,"merged":[[5,0,5,16],[7,0,7,16],[52,10,52,15],[20,10,20,11],[20,12,20,13],[20,14,20,15],[29,10,29,15],[30,10,30,15],[31,10,31,15],[32,10,32,15],[33,10,33,15],[34,10,34,15],[36,2,36,9],[37,2,37,9],[50,2,50,9],[51,2,51,9],[22,1,27,2],[26,13,26,14],[24,3,24,9],[28,0,28,15],[8,0,27,0],[8,3,8,16],[9,3,9,16],[13,1,16,2],[17,1,17,16],[13,3,13,9],[11,13,11,16],[11,8,11,12],[11,3,11,7],[15,3,15,9],[37,10,37,15],[38,10,38,15],[30,2,30,9],[31,2,31,9],[32,2,32,9],[33,2,33,9],[34,2,34,9],[39,10,39,15],[20,5,20,6],[26,4,26,5],[26,8,26,9],[19,1,20,2],[19,10,19,16],[20,7,20,8],[19,3,19,9],[20,3,20,4],[23,6,23,9],[26,6,26,7],[26,10,26,11],[26,15,26,16],[35,2,35,9],[35,10,35,15],[36,10,36,15],[48,10,48,11],[48,13,48,15],[40,14,40,15],[40,11,40,12],[53,10,53,15],[42,10,42,15],[43,10,43,15],[44,10,44,15],[45,10,45,15],[46,10,46,15],[47,10,47,15],[49,10,49,15],[50,10,50,15],[51,10,51,15],[41,10,41,15],[29,0,53,0],[29,2,29,9],[53,2,53,9],[48,2,48,9],[49,2,49,9],[44,2,44,9],[45,2,45,9],[46,2,46,9],[38,2,38,9],[39,2,39,9],[40,2,40,9],[47,2,47,9],[52,2,52,9],[43,2,43,9],[41,2,41,9],[42,2,42,9],[6,1,6,2],[8,1,8,2],[6,3,6,16],[13,10,13,16],[15,10,15,16],[9,1,9,2],[10,1,10,2],[10,3,10,16],[12,3,12,7],[12,8,12,12],[12,13,12,16],[11,1,12,2]]}
[null,null,null,null,null,null,null,null,null,null,null,null,null,null,null,null,{"$f":"Instructions!F1","v":"Interconnection Request - Generator Interconnection Data Form"}]
[null,null,null,null,null,null,null,null,null,null,null,null,null,null,null,null,{"$f":"Instructions!F2","v":"Transmission Voltages 60 kV to 500 kV"}]
[null,null,null,null,null,null,null,null,null,null,null,null,null,null,null,null,{"$f":"Instructions!F3","v":"Form Version: 1.1"}]
["Sections 1, 2, and 3 Instructions: Orange cells are required information, as applicable. Include optional information in white cells if available.",null,null,null,null,null,null,null,null,null,null,null,null,null,"Required","Optional"]
[]
["Section 1 - Interconnection Customer Information "]
[null," Full Legal Name:"]
["Section 2 - Project Information"]
["Project"," Project Name:"]
[null," Owner / Developer:"]
[null," Consultant Name:"]
[null," Technical Contact: ",null,"Name:",null,null,null,null,"Phone number:",null,null,null,null,"E-mail:"]
[]
[null," In-Service Dates   (MM/DD/YYYY):",null,"A) Begin construction:",null,null,null,null,null,null,"B) Generator step-up transformer receives back fed power (e.g. for testing, site construction, etc.)"]
[null,null,null,"Month:",null,"Date:",null,"Year:",null,null,null,"Month:",null,"Date:",null,"Year:"]
[null,null,null,"C) Generator testing:",null,null,null,null,null,null,"D) Commercial operation date:"]
[null,null,null,"Month:",null,"Date:",null,"Year:",null,null,null,"Month:",null,"Date:",null,"Year:"]
[null,"Provide site geographical coordinates for the generating station and the proposed Point of Interconnection (POI) information in the format below. The co-ordinates should be the latitude and longitude values including at least degrees and minutes. The map(s), which is/are to be attached as requested in item 11.08 in Section 11 Drawing Information, should be at a scale of 1:50,000 or preferably 1:25,000 or 1:20,000 to clearly show  the generating station and the proposed POI. The proposed transmission line (if any) from the generating station to the POI should also be shown on the map(s)."]
[]
[null,"Generating Station:",null,"Longitude  (degrees:minutes:seconds)",null,null,null,null,null,null,"Latitude  (degrees:minutes:seconds)"]
[null,null,null,null,null,null,null,null,null,"W",null,null,null,null,null,null,"N"]
[]
[null," Point of Interconnection (POI):    ",null,"If the project is connected to a BCH station.                         "]
[null,null,null,null,"Station Name:"]
[null,null,null,"OR"]
[null,null,null," If the project is connected to a BCH line, provide: "]
[null,null,null,null,"Circuit designation:",null,null,null,"     At a distance:",null,null,null,"  km, ","from the BCH station:"]
[]
["Section 3 - Generating Plant Information",null,null,null,null,null,null,null,null,null,null,null,null,null,null,null,"Units of Measurement"]
["Generating Plant Information","3.01.","Plant Name:"]
[null,"3.02.","Maximum power that the plant plans to inject into the BCH Transmission system at POI",null,null,null,null,null,null,null,null,null,null,null,null,null,"(MW)"]
[null,"3.03.","Proposed total Contracted Capacity to BC Hydro:",null,null,null,null,null,null,null,null,null,null,null,null,null,"(MW)"]
[null,"3.04.","Total of the MW installed capacities of all generators, should include existing and new:",null,null,null,null,null,null,null,null,null,null,null,null,null,"(MW)"]
[null,"3.05.","Total number of generators, should include existing and new:"]
[null,"3.06.","Total number of generator transformers, should include existing and new:"]
[null,"3.07.","Expected auxiliary load (MW) associated with generator(s) at their full output:",null,null,null,null,null,null,null,null,null,null,null,null,null,"(MW)"]
[null,"3.08.","Total load MVars for the above MW load:",null,null,null,null,null,null,null,null,null,null,null,null,null,"(Mvar)"]
[null,"3.09.","Portion of the auxiliary load that was given in 3.07 which is motors:",null,null,null,null,null,null,null,null,null,null,null,null,null,"(MW)"]
[null,"3.10.","Portion of the auxiliary load that was given in 3.07 which is non-motor:",null,null,null,null,null,null,null,null,null,null,null,null,null,"(MW)"]
[null,"3.11.","Power factor corresponding to load given in 3.10",null,null,null,null,null,null,null,null,null,null,null,null,null,"(pf)"]
[null,"3.12.","Total Plant Reactive Compensation: (In addition to the generators)",null,null,null,null,null,null,null,"Shunt Cap +",null,null,"Shunt Reactor -",null,null,"(Mvar)"]
[null,"3.13.","Ground Grid resistance:",null,null,null,null,null,null,null,null,null,null,null,null,null,"(ohms)"]
[null,"3.14.","Plant restoration time immediately following a self restoring fault or upset on the transmission line?",null,null,null,null,null,null,null,null,null,null,null,null,null,"(cycles)"]
[null,"3.15.","Bus length from generation to interconnection station.",null,null,null,null,null,null,null,null,null,null,null,null,null,"(m)"]
[null,"3.16.","Line length from interconnection station to Transmission Provider's transmission line.",null,null,null,null,null,null,null,null,null,null,null,null,null,"(m)"]
[null,"3.17.","Tower number at or near POI  "]
[null,"3.18.","Number of third party easements required for transmission lines. "]
[null,"3.19.","Black Start Capability (Yes / No) ?"]
[null,"3.20.","Will this project need construction power from the BCH grid (Yes / No)? If yes, please provide the date. If not, please write NA in the date field.",null,null,null,null,null,null,null,null,null,"MM/DD/YYYY"]
[null,"3.21.","Is the Generating Facility in the Transmission Provider's service area (Yes / No) ?"]
[null,"3.22.","If \"No\" to the line above, please provide name of Local Provider:"]
[null,"3.23.","Maximum Summer MW total capacity of all generators (July-September)",null,null,null,null,null,null,null,null,null,null,null,null,null,"(MW)"]
[null,"3.24.","Maximum Winter MW total capacity of all generators  (October-April)",null,null,null,null,null,null,null,null,null,null,null,null,null,"(MW)"]
[null,"3.25.","Maximum Spring MW total capacity of all generators (May-June)",null,null,null,null,null,null,null,null,null,null,null,null,null,"(MW)"]

{"sheet":"Unit","index":2,"n_rows":106,"n_cols":22,"rows_kept":106,"cut":false,"hidden":false,"merged":[[6,0,107,0],[6,1,6,20],[7,2,7,10],[8,2,8,10],[9,2,9,10],[10,2,10,10],[11,2,11,10],[12,2,12,10],[13,2,13,10],[14,2,14,10],[31,11,31,20],[21,2,21,10],[22,2,22,10],[23,2,23,10],[24,2,24,10],[25,2,25,10],[26,2,26,9],[15,2,15,10],[16,2,16,10],[17,2,17,10],[18,2,18,10],[19,2,19,10],[20,2,20,10],[32,3,32,9],[33,3,33,9],[34,3,34,9],[35,3,35,9],[36,3,36,9],[37,3,37,9],[27,2,27,9],[28,2,28,9],[29,2,29,9],[30,2,30,9],[31,2,31,10],[44,3,44,9],[45,3,45,9],[46,3,46,9],[47,3,47,9],[48,3,48,9],[49,3,49,9],[38,3,38,9],[39,3,39,9],[40,3,40,9],[41,3,41,9],[42,3,42,9],[43,3,43,9],[55,3,55,9],[56,2,56,10],[56,11,56,20],[57,3,57,9],[58,3,58,9],[59,3,59,9],[50,3,50,9],[51,2,51,10],[51,11,51,20],[52,3,52,9],[53,3,53,9],[54,3,54,9],[65,3,65,10],[66,3,66,10],[67,3,67,10],[69,1,71,1],[69,2,71,10],[69,11,71,11],[60,3,60,9],[61,3,61,9],[62,3,62,9],[63,2,63,10],[63,11,63,20],[64,3,64,10],[75,2,75,10],[76,2,76,10],[77,2,77,10],[78,2,78,9],[79,2,79,9],[80,2,80,9],[69,18,71,18],[69,19,71,19],[69,20,71,20],[72,1,72,20],[73,2,73,10],[74,2,74,10],[69,12,71,12],[69,13,71,13],[69,14,71,14],[69,15,71,15],[69,16,71,16],[69,17,71,17],[87,2,87,9],[88,2,88,9],[89,1,91,1],[89,2,91,10],[89,11,91,11],[89,12,91,12],[81,2,81,9],[82,2,82,9],[83,2,83,9],[84,2,84,9],[85,2,85,9],[86,2,86,9],[89,20,91,20],[92,1,92,20],[93,1,93,10],[93,11,93,20],[94,2,94,10],[89,13,91,13],[89,14,91,14],[89,15,91,15],[89,16,91,16],[89,17,91,17],[89,18,91,18],[98,16,100,16],[98,17,100,17],[95,2,95,10],[96,2,96,10],[97,2,97,10],[98,1,100,1],[98,2,100,10],[98,11,100,11],[89,19,91,19],[105,20,107,20],[5,0,5,10],[105,14,107,14],[105,15,107,15],[105,16,107,16],[105,17,107,17],[105,18,107,18],[105,19,107,19],[104,2,104,10],[105,1,107,1],[105,2,107,10],[105,11,107,11],[105,12,107,12],[105,13,107,13],[98,18,100,18],[98,19,100,19],[98,20,100,20],[101,1,101,20],[102,2,102,10],[103,2,103,10],[98,12,100,12],[98,13,100,13],[98,14,100,14],[98,15,100,15]]}
[null,null,null,null,null,null,null,null,null,null,null,null,null,null,null,null,null,null,null,null,null,{"$f":"Instructions!F1","v":"Interconnection Request - Generator Interconnection Data Form"}]
[null,null,null,null,null,null,null,null,null,null,null,null,null,null,null,null,null,null,null,null,null,{"$f":"Instructions!F2","v":"Transmission Voltages 60 kV to 500 kV"}]
[null,null,null,null,null,null,null,null,null,null,null,null,null,null,null,null,null,null,null,null,null,{"$f":"Instructions!F3","v":"Form Version: 1.1"}]
["Section 4 Instructions: Orange cells are required information, as applicable. Include optional information in white cells if available.",null,null,null,null,null,null,null,null,null,null,null,null,null,null,null,null,null,null,"Required","Optional"]
[]
["Section 4 - Hydro, Gas, and Thermal Generator Information",null,null,null,null,null,null,null,null,null,null,"Unit 1","Unit 2","Unit 3","Unit 4","Unit 5","Unit 6","Unit 7","Unit 8","Unit 9","Unit 10","Unit of Measurement"]
["Hydro, Gas and Thermal Generators","GENERATOR INFORMATION:"]
[null,"4.01.","Unit Designation"]
[null,"4.02.","Manufacturer"]
[null,"4.03.","Model"]
[null,"4.04.","Serial Number"]
[null,"4.05.","Rated MVA",null,null,null,null,null,null,null,null,null,null,null,null,null,null,null,null,null,null,"(MVA)"]
[null,"4.06.","Rated MW",null,null,null,null,null,null,null,null,null,null,null,null,null,null,null,null,null,null,"(MW)"]
[null,"4.07.","Rated Power Factor (specify \"lagging / leading\" in this format: \"0.xx / 0.xx\")"]
[null,"4.08.","Rated kV",null,null,null,null,null,null,null,null,null,null,null,null,null,null,null,null,null,null,"(kV)"]
[null,"4.09.","Rated Amperes",null,null,null,null,null,null,null,null,null,null,null,null,null,null,null,null,null,null,"(A)"]
[null,"4.10.","Number of Phases"]
[null,"4.11.","Number of Pole-pairs"]
[null,"4.12.","Rated Speed",null,null,null,null,null,null,null,null,null,null,null,null,null,null,null,null,null,null,"(rpm)"]
[null,"4.13.","Rated Frequency",null,null,null,null,null,null,null,null,null,null,null,null,null,null,null,null,null,null,"(Hz)"]
[null,"4.14.","Type of Generator (specify \"synchronous\", \"induction\", etc)"]
[null,"4.15.","Amortisseur (damper) windings (specify \"connected\", \"not connected\" or \"not installed\")"]
[null,"4.16.","Synchronous Condenser Capability  (specify \"yes\" or \"no\")"]
[null,"4.17.","Connection  (specify \"delta\" or \"wye\")"]
[null,"4.18.","Type of Grounding (specify \"ungrounded\", \"resistive\", \"reactive\", or \"solidly grounded\")"]
[null,"4.19.","Grounding Resistance",null,null,null,null,null,null,null,null,null,null,null,null,null,null,null,null,null,null,"(ohms)"]
[null,"4.20.","Inertia Constant of Generator",null,null,null,null,null,null,null,"HG",null,null,null,null,null,null,null,null,null,null,"(MW-sec / MVA)"]
[null,"4.21.","Generator Moment of Inertia",null,null,null,null,null,null,null,"WR2G",null,null,null,null,null,null,null,null,null,null,"(lb-ft2)"]
[null,"4.22.","Inertia Constant of Turbine + Generator (Provide proposed data)",null,null,null,null,null,null,null,"HGT",null,null,null,null,null,null,null,null,null,null,"(MW-sec / MVA)"]
[null,"4.23.","Turbine + Generator Moment of Inertia  ",null,null,null,null,null,null,null,"WR2GT",null,null,null,null,null,null,null,null,null,null,"(lb-ft2)"]
[null,"4.24.","Energy Source (Hydraulic, Gas, Steam or other)"]
[null,"4.25.","Impedances in per-unit (unless specified) on the machine base kV and base MVA:"]
[null,"4.25.1",null,"Base kV",null,null,null,null,null,null,null,null,null,null,null,null,null,null,null,null,null,"(kV)"]
[null,"4.25.2",null,"Base MVA",null,null,null,null,null,null,null,null,null,null,null,null,null,null,null,null,null,"(MVA)"]
[null,"4.25.3",null,"D-axis synchronous reactance (unsaturated)",null,null,null,null,null,null,"Xdi",null,null,null,null,null,null,null,null,null,null,"(pu)"]
[null,"4.25.4",null,"D-axis transient reactance (unsaturated)",null,null,null,null,null,null,"X'di",null,null,null,null,null,null,null,null,null,null,"(pu)"]
[null,"4.25.6",null,"D-axis sub-transient reactance (unsaturated)",null,null,null,null,null,null,"X\"di",null,null,null,null,null,null,null,null,null,null,"(pu)"]
[null,"4.25.7",null,"D-axis sub-transient reactance (saturated)",null,null,null,null,null,null,"X\"dv",null,null,null,null,null,null,null,null,null,null,"(pu)"]
[null,"4.25.8",null,"Q-axis synchronous reactance (unsaturated)",null,null,null,null,null,null,"Xqi",null,null,null,null,null,null,null,null,null,null,"(pu)"]
[null,"4.25.9",null,"Q-axis transient reactance (unsaturated)",null,null,null,null,null,null,"X'qi",null,null,null,null,null,null,null,null,null,null,"(pu)"]
[null,"4.25.10",null,"Q-axis sub-transient reactance (unsaturated)",null,null,null,null,null,null,"X\"qi",null,null,null,null,null,null,null,null,null,null,"(pu)"]
[null,"4.25.11",null,"Negative sequence resistance",null,null,null,null,null,null,"R2",null,null,null,null,null,null,null,null,null,null,"(pu)"]
[null,"4.25.12",null,"Negative sequence reactance (unsaturated)",null,null,null,null,null,null,"X2i",null,null,null,null,null,null,null,null,null,null,"(pu)"]
[null,"4.25.13",null,"Zero sequence resistance",null,null,null,null,null,null,"R0",null,null,null,null,null,null,null,null,null,null,"(pu)"]
[null,"4.25.14",null,"Zero sequence reactance (unsaturated)",null,null,null,null,null,null,"X0i",null,null,null,null,null,null,null,null,null,null,"(pu)"]
[null,"4.25.15",null,"Leakage reactance (unsaturated)",null,null,null,null,null,null,"Xlm",null,null,null,null,null,null,null,null,null,null,"(pu)"]
[null,"4.25.16",null,"Short Circuit Ratio",null,null,null,null,null,null,"SCR"]
[null,"4.25.17",null,"Armature resistance per phase",null,null,null,null,null,null,"Ra",null,null,null,null,null,null,null,null,null,null,"(pu)"]
[null,"4.25.18",null,"Armature temperature at which Ra was measured",null,null,null,null,null,null,null,null,null,null,null,null,null,null,null,null,null,"(°C)"]
[null,"4.25.19",null,"Field winding resistance",null,null,null,null,null,null,"Rf",null,null,null,null,null,null,null,null,null,null,"(ohms)"]
[null,"4.25.20",null,"Field winding temperature at which Rf was measured",null,null,null,null,null,null,null,null,null,null,null,null,null,null,null,null,null,"(°C)"]
[null,"4.26.","Time constants:"]
[null,"4.26.1",null,"D-axis transient open circuit time constant",null,null,null,null,null,null,"T'do",null,null,null,null,null,null,null,null,null,null,"(sec)"]
[null,"4.26.2",null,"D-axis sub-transient open circuit time constant",null,null,null,null,null,null,"T''do",null,null,null,null,null,null,null,null,null,null,"(sec)"]
[null,"4.26.3",null,"Q-axis transient open circuit time constant",null,null,null,null,null,null,"T'qo",null,null,null,null,null,null,null,null,null,null,"(sec)"]
[null,"4.26.4",null,"Q-axis sub-transient open circuit time constant",null,null,null,null,null,null,"T''qo",null,null,null,null,null,null,null,null,null,null,"(sec)"]
[null,"4.27.","Other parameters:"]
[null,"4.27.1",null,"Saturation Factor at Et = 1.0pu",null,null,null,null,null,null,"SG1.0"]
[null,"4.27.2",null,"Saturation Factor at Et = 1.2pu, ",null,null,null,null,null,null,"SG1.2"]
[null,"4.27.3",null,"Damping Coefficient (pu torque/pu speed dev)",null,null,null,null,null,null,"D"]
[null,"4.27.4",null,"Locked Rotor Current (induction units only)",null,null,null,null,null,null,null,null,null,null,null,null,null,null,null,null,null,"(A)"]
[null,"4.27.5",null,"Synchronous Speed (induction units only)",null,null,null,null,null,null,null,null,null,null,null,null,null,null,null,null,null,"(rpm)"]
[null,"4.27.6",null,"Efficiency (induction units only)",null,null,null,null,null,null,null,null,null,null,null,null,null,null,null,null,null,"(%)"]
[null,"4.27.7","Characteristic Curves - preferably on one graph.  (pu Stator Voltage & Current versus pu Field Current):"]
[null,"4.27.7.1",null,"Open circuit saturation curve.",null,null,null,null,null,null,null,"Attach file","Attach file","Attach file","Attach file","Attach file","Attach file","Attach file","Attach file","Attach file","Attach file"]
[null,"4.27.7.2",null,"Short circuit saturation curve:",null,null,null,null,null,null,null,"Attach file","Attach file","Attach file","Attach file","Attach file","Attach file","Attach file","Attach file","Attach file","Attach file"]
[null,"4.27.7.3",null,"Load saturation curve at zero pf over-excited for maximum MVar output at 100% rated voltage.",null,null,null,null,null,null,null,"Attach file","Attach file","Attach file","Attach file","Attach file","Attach file","Attach file","Attach file","Attach file","Attach file"]
[null,"4.27.7.4",null,"V-Curves (if available)",null,null,null,null,null,null,null,"Attach file","Attach file","Attach file","Attach file","Attach file","Attach file","Attach file","Attach file","Attach file","Attach file"]
[null,"4.27.8","         Generator capability curves (kVars versus kW)",null,null,null,null,null,null,null,null,"Attach file","Attach file","Attach file","Attach file","Attach file","Attach file","Attach file","Attach file","Attach file","Attach file"]
[null,"4.28.","Model:\nGenerator Model Data Sheet shall be provided complete in IEEE or PTI PSSE format (v33 or higher).",null,null,null,null,null,null,null,null,"Attach file","Attach file","Attach file","Attach file","Attach file","Attach file","Attach file","Attach file","Attach file","Attach file"]
[]
[]
[null,"EXCITER INFORMATION:"]
[null,"4.29.","Manufacturer"]
[null,"4.30.","Model"]
[null,"4.31.","Serial Number"]
[null,"4.32.","Rating",null,null,null,null,null,null,null,null,null,null,null,null,null,null,null,null,null,null,"(kVA)"]
[null,"4.33.","Excitation system voltage response time. Please refer to section 5.4.3 of 60 kV to 500 kV Technical Interconnection Requirements for Power Generators for generation excitation equipment requirements.",null,null,null,null,null,null,null,null,null,null,null,null,null,null,null,null,null,null,"(sec)"]
[null,"4.34.","Generator Field Resistance at 75°C",null,null,null,null,null,null,null,"Rf",null,null,null,null,null,null,null,null,null,null,"(ohms)"]
[null,"4.35.","1.0pu Field Voltage (taken on the airgap line)",null,null,null,null,null,null,null,"Ef",null,null,null,null,null,null,null,null,null,null,"(Volts)"]
[null,"4.36.","Full Load Field Current",null,null,null,null,null,null,null,"If (FULL-LOAD)",null,null,null,null,null,null,null,null,null,null,"(Amperes)"]
[null,"4.37.","Field Current at 1.0pu generator terminal voltage, at rated MVA and at rated pf & over-excited",null,null,null,null,null,null,null,"If 1.0pu",null,null,null,null,null,null,null,null,null,null,"(Amperes)"]
[null,"4.38.","Field Current at 1.05pu generator terminal voltage, at rated MVA and at rated pf & over-excited",null,null,null,null,null,null,null,"If 1.05pu",null,null,null,null,null,null,null,null,null,null,"(Amperes)"]
[null,"4.39.","Field Current at 1.1pu generator terminal voltage, at rated MVA and at rated pf & over-excited",null,null,null,null,null,null,null,"If 1.1pu",null,null,null,null,null,null,null,null,null,null,"(Amperes)"]
[null,"4.40.","No Load Field Current",null,null,null,null,null,null,null,"If (NO-LOAD)",null,null,null,null,null,null,null,null,null,null,"(Amperes)"]
[null,"4.41.","Maximum Exciter Output Voltage",null,null,null,null,null,null,null,"Ef max",null,null,null,null,null,null,null,null,null,null,"(Volts)"]
[null,"4.42.","Minimum Exciter Output Voltage",null,null,null,null,null,null,null,"Ef min",null,null,null,null,null,null,null,null,null,null,"(Volts)"]
[null,"4.43.","Maximum Regulator Output Voltage (if VR present)",null,null,null,null,null,null,null,"VR max",null,null,null,null,null,null,null,null,null,null,"(Volts)"]
[null,"4.44.","Minimum Regulator Output Voltage (if VR present)",null,null,null,null,null,null,null,"VR min",null,null,null,null,null,null,null,null,null,null,"(Volts)"]
[null,"4.45.","Model:\nExciter (including Power System Stabilizer, if applicable.) Control Block Diagrams & Data Sheets shall be provided complete in IEEE or PTI PSSE format (v33 or higher).",null,null,null,null,null,null,null,null,"Attach file","Attach file","Attach file","Attach file","Attach file","Attach file","Attach file","Attach file","Attach file","Attach file"]
[]
[]
[null,"POWER SYSTEM STABILIZER INFORMATION:"]
[null,"Required for synchronous generators >30 MVA or complex that has an aggregate capacity >75 MVA, per WECC (https://www.wecc.org)."]
[null,"4.46.","Manufacturer"]
[null,"4.47.","Model"]
[null,"4.48.","Serial Number"]
[null,"4.49.","Control Mode (P-Power, S-Speed, F-Frequency)"]
[null,"4.50.","Model: \nTo be included with Exciter model -- see line 4.45 of Exciter section above.",null,null,null,null,null,null,null,null,"Attach file","Attach file","Attach file","Attach file","Attach file","Attach file","Attach file","Attach file","Attach file","Attach file"]
[]
[]
[null,"GOVERNOR INFORMATION:"]
[null,"4.51.","Manufacturer"]
[null,"4.52.","Model"]
[null,"4.53.","Serial Number"]
[null,"4.54.","Model: \nGovernor Model Block Diagrams & Data Sheets shall be provided complete in IEEE or PTI PSSE format (v33 or higher).",null,null,null,null,null,null,null,null,"Attach file","Attach file","Attach file","Attach file","Attach file","Attach file","Attach file","Attach file","Attach file","Attach file"]

{"sheet":"Wind","index":3,"n_rows":97,"n_cols":22,"rows_kept":97,"cut":false,"hidden":false,"merged":[[79,2,79,10],[80,2,80,10],[76,1,76,10],[49,2,49,10],[84,1,84,10],[81,2,81,10],[82,2,82,10],[83,2,83,10],[78,2,78,10],[77,2,77,10],[54,2,54,10],[63,2,63,10],[62,2,62,10],[57,2,57,10],[60,2,60,10],[52,2,52,10],[91,2,91,10],[92,2,92,10],[93,2,93,10],[94,2,94,10],[88,2,88,10],[89,2,89,9],[90,2,90,9],[53,2,53,10],[58,2,58,10],[59,2,59,10],[55,2,55,10],[72,2,72,10],[73,2,73,10],[37,2,37,10],[41,2,41,9],[65,1,65,20],[66,2,66,19],[67,1,67,10],[42,2,42,9],[68,2,68,10],[69,2,69,10],[70,2,70,10],[71,2,71,10],[43,2,43,10],[44,1,44,10],[56,1,56,10],[64,2,64,10],[46,2,46,10],[5,0,5,10],[11,2,11,9],[7,2,7,10],[8,2,8,10],[9,2,9,10],[10,2,10,9],[6,1,6,20],[6,0,94,0],[61,2,61,10],[85,1,85,10],[86,2,86,10],[87,2,87,10],[74,2,74,10],[22,2,22,10],[24,1,24,20],[25,1,25,10],[36,2,36,9],[31,2,31,10],[12,2,12,9],[13,2,13,10],[20,2,20,10],[32,1,32,10],[14,2,14,10],[23,2,23,10],[28,2,28,10],[29,2,29,10],[30,2,30,10],[19,2,19,9],[21,2,21,10],[15,2,15,10],[17,2,17,10],[47,2,47,10],[48,2,48,10],[75,2,75,10],[16,1,16,10],[18,2,18,9],[45,2,45,10],[50,2,50,10],[51,2,51,10],[26,2,26,10],[27,2,27,10],[39,2,39,10],[40,1,40,10],[38,2,38,10],[33,2,33,9],[34,2,34,9],[35,2,35,9]]}
[null,null,null,null,null,null,null,null,null,null,null,null,null,null,null,null,null,null,null,null,null,{"$f":"Instructions!F1","v":"Interconnection Request - Generator Interconnection Data Form"}]
[null,null,null,null,null,null,null,null,null,null,null,null,null,null,null,null,null,null,null,null,null,{"$f":"Instructions!F2","v":"Transmission Voltages 60 kV to 500 kV"}]
[null,null,null,null,null,null,null,null,null,null,null,null,null,null,null,null,null,null,null,null,null,{"$f":"Instructions!F3","v":"Form Version: 1.1"}]
["Section 5 Instructions: Orange cells are required information, as applicable. Include optional information in white cells if available.",null,null,null,null,null,null,null,null,null,null,null,null,null,null,null,null,null,null,"Required","Optional"]
[]
["Section 5 - Wind Turbine Generator Information",null,null,null,null,null,null,null,null,null,null,"Feeder 1","Feeder 2","Feeder 3","Feeder 4","Feeder 5","Feeder 6","Feeder 7","Feeder 8","Feeder 9","Feeder 10","Unit of Measurement"]
["Wind Turbine Generator","EQUIVALENT FEEDER INFORMATION"]
[null,"5.01.","Total  Length of Each Feeder ",null,null,null,null,null,null,null,null,null,null,null,null,null,null,null,null,null,null,"(km)"]
[null,"5.02.","Cable % of the Feeder Length ",null,null,null,null,null,null,null,null,null,null,null,null,null,null,null,null,null,null,"(%)"]
[null,"5.03.","Feeder Base Voltage",null,null,null,null,null,null,null,null,null,null,null,null,null,null,null,null,null,null,"(kV)"]
[null,"5.04.","Feeder Equivalent Resistance                                                                                                           R ",null,null,null,null,null,null,null,"R",null,null,null,null,null,null,null,null,null,null,"(ohms)"]
[null,"5.05.","Feeder Equivalent Reactance                                                                                                           X ",null,null,null,null,null,null,null,"X",null,null,null,null,null,null,null,null,null,null,"(ohms)"]
[null,"5.06.","Feeder Equivalent Charging                                                                                                              B",null,null,null,null,null,null,null,"B",null,null,null,null,null,null,null,null,null,null,"(µMHO)"]
[null,"5.07.","Total number of Wind Turbine Generators on each Feeder"]
[null,"5.08.","Manufacturer's Wind Turbine Generator Model Name (Name1, Name2 etc. if more than one name)"]
[null,"5.09.","Number of WTGs Model on each Feeder "]
[null,"Equivalent wind turbine generator model for each feeder (excluding var effect of shunt equipment at collector buses)"]
[null,"5.10.","Equivalent Total Rated MW Capacity ",null,null,null,null,null,null,null,null,null,null,null,null,null,null,null,null,null,null,"(MW)"]
[null,"5.11.","Equivalent Reactive Power Range at Zero MW Generation                                                          ",null,null,null,null,null,null,null,"  (+Q, -Q)",null,null,null,null,null,null,null,null,null,null,"(Mvar)"]
[null,"5.12.","Equivalent Reactive Power Range at Rated MW Generation                                                           ",null,null,null,null,null,null,null,"(+Q, -Q)",null,null,null,null,null,null,null,null,null,null,"(Mvar)"]
[null,"5.13.","Provide Power Flow Model and Data in PSS/E format (v33 or Higher)",null,null,null,null,null,null,null,null,"Attach file","Attach file","Attach file","Attach file","Attach file","Attach file","Attach file","Attach file","Attach file","Attach file"]
[null,"5.14.","Model Type: Standard Library [SL] or User Written [UW]"]
[null,"5.15.","Model Access: Proprietary [P] or Non-proprietary [NP]"]
[null,"5.16.","Attach equivalent wind turbine generator dynamic model and parameter data in PSS/E format (v33 or higher) for transient stability studies",null,null,null,null,null,null,null,null,"Attach file","Attach file","Attach file","Attach file","Attach file","Attach file","Attach file","Attach file","Attach file","Attach file"]
[null,"WIND TURBINE INFORMATION"]
[null,"For each wind turbine generator model provide the following information:",null,null,null,null,null,null,null,null,null,"Model 1","Model 2","Model 3","Model 4","Model 5","Model 6","Model 7","Model 8","Model 9","Model 10"]
[null,"5.17.","Wind Turbine Generator Manufacturer Name"]
[null,"5.18.","Manufacturer Model Name"]
[null,"5.19.","Maximum Active Power Output",null,null,null,null,null,null,null,null,null,null,null,null,null,null,null,null,null,null,"(MW)"]
[null,"5.20.","WTG Rated MVA",null,null,null,null,null,null,null,null,null,null,null,null,null,null,null,null,null,null,"(MVA)"]
[null,"5.21.","WTG Rated MW",null,null,null,null,null,null,null,null,null,null,null,null,null,null,null,null,null,null,"(MW)"]
[null,"5.22.","WTG Type: 1: Squirrel Cage Induction Generator, 2: Wound rotor induction generator with variable rotor resistance; 3: Doubly-fed asynchronous generator; 4: Full Converter Interface"]
[null,"Type 1 and Type 2"]
[null,"5.23.","Uncompensated Reactive Power Range at Zero MW Generation                                                ",null,null,null,null,null,null,null,"(+Q, -Q)",null,null,null,null,null,null,null,null,null,null,"(Mvar)"]
[null,"5.24.","Uncompensated Reactive Power Range at Rated MW Generation                                               ",null,null,null,null,null,null,null,"(+Q, -Q)",null,null,null,null,null,null,null,null,null,null,"(Mvar)"]
[null,"5.25.","Compensated Reactive Power Range at Zero MW Generation                                                   ",null,null,null,null,null,null,null," (+Q, -Q)",null,null,null,null,null,null,null,null,null,null,"(Mvar)"]
[null,"5.26.","Compensated Reactive Power Range at Rated MW Generation                                                  ",null,null,null,null,null,null,null," (+Q, -Q)",null,null,null,null,null,null,null,null,null,null,"(Mvar)"]
[null,"5.27.","Number of Stages of Shunt Capacitors"]
[null,"5.28.","Size of Shunt Capacitors",null,null,null,null,null,null,null,null,null,null,null,null,null,null,null,null,null,null,"(Mvar)"]
[null,"5.29.","Attach Schedule for Power Factor Capacitor Insertion Versus WTG Power Output",null,null,null,null,null,null,null,null,"Attach file","Attach file","Attach file","Attach file","Attach file","Attach file","Attach file","Attach file","Attach file","Attach file"]
[null,"Type 3 and Type 4"]
[null,"5.30.","Reactive Power Range at Zero MW Generation                                                                        ",null,null,null,null,null,null,null,"  (+Q, -Q)",null,null,null,null,null,null,null,null,null,null,"(Mvar)"]
[null,"5.31.","Reactive Power Range at Rated MW Generation                                                                       ",null,null,null,null,null,null,null,"  (+Q, -Q)",null,null,null,null,null,null,null,null,null,null,"(Mvar)"]
[null,"5.32.","Attach capability curves describing reactive power or power factor range from 0 to max MW generation",null,null,null,null,null,null,null,null,"Attach file","Attach file","Attach file","Attach file","Attach file","Attach file","Attach file","Attach file","Attach file","Attach file"]
[null,"Type 3 "]
[null,"5.33.","Rotor side converter current limit",null,null,null,null,null,null,null,null,null,null,null,null,null,null,null,null,null,null,"(pu)"]
[null,"5.34.","Grid side converter current limit",null,null,null,null,null,null,null,null,null,null,null,null,null,null,null,null,null,null,"(pu)"]
[null,"5.35.","Generator shutdown when a phase voltage exceeds ",null,null,null,null,null,null,null,null,null,null,null,null,null,null,null,null,null,null,"(pu)"]
[null,"5.36.","Generator shutdown when a phase voltage drops below",null,null,null,null,null,null,null,null,null,null,null,null,null,null,null,null,null,null,"(pu)"]
[null,"5.37.","Rotor R",null,null,null,null,null,null,null,null,null,null,null,null,null,null,null,null,null,null,"(pu)"]
[null,"5.38.","Stator R",null,null,null,null,null,null,null,null,null,null,null,null,null,null,null,null,null,null,"(pu)"]
[null,"5.39.","Rotor leakage L",null,null,null,null,null,null,null,null,null,null,null,null,null,null,null,null,null,null,"(pu)"]
[null,"5.40.","Stator leakage L",null,null,null,null,null,null,null,null,null,null,null,null,null,null,null,null,null,null,"(pu)"]
[null,"5.41.","Mutual L",null,null,null,null,null,null,null,null,null,null,null,null,null,null,null,null,null,null,"(pu)"]
[null,"5.42.","Slip at rated KW"]
[null,"5.43.","Filter X (typically <-10)",null,null,null,null,null,null,null,null,null,null,null,null,null,null,null,null,null,null,"(pu)"]
[null,"Type 4"]
[null,"5.44.","Maximum Current (in multiples of full-load current):                                                                                   "]
[null,"5.44.1","   V (pu) threshold for current limiting",null,null,null,null,null,null,null,null,null,null,null,null,null,null,null,null,null,null,"(pu)"]
[null,"5.44.2","   If V (pu) above V (pu) threshold , Max I equals",null,null,null,null,null,null,null,null,null,null,null,null,null,null,null,null,null,null,"(pu)"]
[null,"5.45.","   If V (pu) below V (pu) threshold , Max I equals",null,null,null,null,null,null,null,null,null,null,null,null,null,null,null,null,null,null,"(pu)"]
[null,"5.46.","Slope of positive sequence dynamic reactive-current injection characteristics"]
[null,"5.47.","Slope of negative sequence dynamic reactive-current injection characteristics"]
[null,"5.48.","Generator shutdown when a phase voltage exceeds ",null,null,null,null,null,null,null,null,null,null,null,null,null,null,null,null,null,null,"(pu)"]
[null,"5.49.","Generator shutdown when a phase voltage drops below",null,null,null,null,null,null,null,null,null,null,null,null,null,null,null,null,null,null,"(pu)"]
[null,"REACTIVE COMPENSATION INFORMATION"]
[null,"5.50.","Reactive Power Compensation at Collector and Switching Stations: Provide a description of the overall reactive power control scheme including co-ordination between mechanically switched and continuously acting reactive power devices (such as STATCOM or SVC). Please specify the following items if available: 1) Var control capability range at the POI based on maximum project MW output. 2) Will a closed loop voltage control scheme be provided? 3)  Where is the voltage regulation point (e.g. 34.5 kV collector bus)? 4) Is the power factor control mode available? 5)  Is the reactive power control mode available?",null,null,null,null,null,null,null,null,null,null,null,null,null,null,null,null,null,"Attach file"]
[null,"Mechanically-switched shunt capacitors connected to collector station buses:",null,null,null,null,null,null,null,null,null,"Capacitor 1","Capacitor 2","Capacitor 3","Capacitor 4","Capacitor 5","Capacitor 6","Capacitor 7","Capacitor 8","Capacitor 9","Capacitor 10"]
[null,"5.51.","Shunt Capacitor Size",null,null,null,null,null,null,null,null,null,null,null,null,null,null,null,null,null,null,"(Mvar)"]
[null,"5.52.","Shunt Capacitor Rated Voltage ",null,null,null,null,null,null,null,null,null,null,null,null,null,null,null,null,null,null,"(kV)"]
[null,"5.53.","Voltage Relay Settings to Switch Shunt Capacitors: "]
[null,"5.53.1","               Cut-in Voltage Level ",null,null,null,null,null,null,null,null,null,null,null,null,null,null,null,null,null,null,"(kV)"]
[null,"5.53.2","               Cut-in Time Delay",null,null,null,null,null,null,null,null,null,null,null,null,null,null,null,null,null,null,"(sec)"]
[null,"5.53.3","               Cut-out Voltage Level",null,null,null,null,null,null,null,null,null,null,null,null,null,null,null,null,null,null,"(kV)"]
[null,"5.53.4","               Cut-out Time Delay",null,null,null,null,null,null,null,null,null,null,null,null,null,null,null,null,null,null,"(sec)"]
[null,"5.53.5","               Re-insertion Time Delay",null,null,null,null,null,null,null,null,null,null,null,null,null,null,null,null,null,null,"(sec)"]
[null,"Mechanically-switched shunt reactors connected to collector station buses:",null,null,null,null,null,null,null,null,null,"Reactor 1","Reactor 2","Reactor 3","Reactor 4","Reactor 5","Reactor 6","Reactor 7","Reactor 8","Reactor 9","Reactor 10"]
[null,"5.54.","Shunt Reactor Size",null,null,null,null,null,null,null,null,null,null,null,null,null,null,null,null,null,null,"(Mvar)"]
[null,"5.55.","Shunt Reactor Rated Voltage",null,null,null,null,null,null,null,null,null,null,null,null,null,null,null,null,null,null,"(kV)"]
[null,"5.56.","Voltage Relay Settings to Switched Shunt Reactors: "]
[null,"5.56.1","               Cut-in Voltage Level",null,null,null,null,null,null,null,null,null,null,null,null,null,null,null,null,null,null,"(kV)"]
[null,"5.56.2","               Cut-in Time Delay",null,null,null,null,null,null,null,null,null,null,null,null,null,null,null,null,null,null,"(sec)"]
[null,"5.56.3","               Cut-out Voltage Level",null,null,null,null,null,null,null,null,null,null,null,null,null,null,null,null,null,null,"(kV)"]
[null,"5.56.4","               Cut-out Time Delay",null,null,null,null,null,null,null,null,null,null,null,null,null,null,null,null,null,null,"(sec)"]
[null,"Dynamic Reactive Power Devices"]
[null,"Provide PSS/E model and corresponding parameters (v33 or higher) for power flow and transient stability studies.",null,null,null,null,null,null,null,null,null,"Device 1","Device 2","Device 3","Device 4","Device 5","Device 6","Device 7","Device 8","Device 9","Device 10"]
[null,"5.57.","Type of the Device and Name, e.g. SVC, STATCOM etc."]
[null,"5.58.","Rated Voltage",null,null,null,null,null,null,null,null,null,null,null,null,null,null,null,null,null,null,"(kV)"]
[null,"5.59.","Rated Capacity",null,null,null,null,null,null,null,null,null,null,null,null,null,null,null,null,null,null,"(Mvar)"]
[null,"5.60.","Steady State Var Range                                                                                                                ",null,null,null,null,null,null,null," (+Q, -Q)",null,null,null,null,null,null,null,null,null,null,"(Mvar)"]
[null,"5.61.","Dynamic Var Range, if applicable (e.g. for STATCOM)                                                                ",null,null,null,null,null,null,null,"  (+Q, -Q)",null,null,null,null,null,null,null,null,null,null,"(Mvar)"]
[null,"5.62.","Provide Power Flow Model and Data per PSS/E requirement (v33 or higher)",null,null,null,null,null,null,null,null,"Attach file","Attach file","Attach file","Attach file","Attach file","Attach file","Attach file","Attach file","Attach file","Attach file"]
[null,"5.63.","Dynamic Model Type [Standard Library (SL) or User-Written (UW)]"]
[null,"5.64.","Model access: Proprietary [P] or Non-proprietary [NP]"]
[null,"5.65.","Attach dynamic model and data as per PSS/E requirement; Also provide description and oneline diagram of the device.",null,null,null,null,null,null,null,null,"Attach file","Attach file","Attach file","Attach file","Attach file","Attach file","Attach file","Attach file","Attach file","Attach file"]
[]
["Note: Additional information for a wind farm is requested in other sections such as generator step-up transformers in section 7, main and other transformers in section 8, transmission lines in section 10 , single line diagrams and other diagrams in section 12 etc."]

{"sheet":"Solar & Storage","index":4,"n_rows":137,"n_cols":22,"rows_kept":137,"cut":false,"hidden":false,"merged":[[27,2,27,10],[28,2,28,10],[46,2,46,10],[37,2,37,10],[38,2,38,10],[40,2,40,9],[30,1,30,20],[29,2,29,10],[31,1,31,10],[42,2,42,10],[32,2,32,10],[33,2,33,10],[34,2,34,10],[35,2,35,10],[36,2,36,10],[39,2,39,9],[41,2,41,10],[43,2,43,10],[44,2,44,10],[45,2,45,10],[7,2,7,10],[8,2,8,10],[23,2,23,9],[24,2,24,9],[25,2,25,9],[19,1,19,10],[20,2,20,10],[15,2,15,10],[16,2,16,10],[17,2,17,10],[18,2,18,10],[9,2,9,10],[21,2,21,9],[22,2,22,9],[63,2,63,10],[64,2,64,10],[65,2,65,10],[66,2,66,10],[67,2,67,10],[57,2,57,10],[59,2,59,10],[60,2,60,10],[61,2,61,10],[62,2,62,10],[58,2,58,10],[55,1,55,20],[47,2,47,10],[48,2,48,10],[49,2,49,10],[50,2,50,10],[51,2,51,10],[52,2,52,10],[53,2,53,10],[54,2,54,10],[74,2,74,10],[75,2,75,10],[76,1,76,10],[77,2,77,10],[78,2,78,10],[68,2,68,10],[69,2,69,10],[70,2,70,10],[71,2,71,10],[72,2,72,10],[73,1,73,20],[84,1,84,10],[85,2,85,10],[86,2,86,10],[87,2,87,10],[88,2,88,10],[79,2,79,10],[80,2,80,10],[81,2,81,10],[82,2,82,10],[83,2,83,10],[96,2,96,10],[97,2,97,10],[98,2,98,10],[99,2,99,10],[100,2,100,10],[89,2,89,10],[92,1,92,10],[93,2,93,10],[94,2,94,10],[95,2,95,10],[90,1,90,20],[91,2,91,19],[121,2,121,19],[107,2,107,10],[108,2,108,10],[101,1,101,10],[109,1,109,10],[111,2,111,10],[102,2,102,10],[103,2,103,10],[104,2,104,10],[105,2,105,10],[106,2,106,10],[123,2,123,10],[124,2,124,10],[6,0,126,0],[6,1,6,20],[26,2,26,10],[10,2,10,9],[11,2,11,9],[12,2,12,9],[13,2,13,9],[14,2,14,9],[125,2,125,10],[126,2,126,9],[56,1,56,10],[117,2,117,10],[118,2,118,10],[110,1,110,10],[119,2,119,10],[122,1,122,10],[112,2,112,10],[113,2,113,10],[114,2,114,9],[115,2,115,9],[116,2,116,10],[120,1,120,20]]}
[null,null,null,null,null,null,null,null,null,null,null,null,null,null,null,null,null,null,null,null,null,{"$f":"Instructions!F1","v":"Interconnection Request - Generator Interconnection Data Form"}]
[null,null,null,null,null,null,null,null,null,null,null,null,null,null,null,null,null,null,null,null,null,{"$f":"Instructions!F2","v":"Transmission Voltages 60 kV to 500 kV"}]
[null,null,null,null,null,null,null,null,null,null,null,null,null,null,null,null,null,null,null,null,null,{"$f":"Instructions!F3","v":"Form Version: 1.1"}]
["Section 6 Instructions: Orange cells are required information, as applicable. Include optional information in white cells if available.",null,null,null,null,null,null,null,null,null,null,null,null,null,null,null,null,null,null,"Required","Optional"]
[]
["Section 6 - Solar and Battery (BAT) Inverter Information",null,null,null,null,null,null,null,null,null,null,"Feeder 1","Feeder 2","Feeder 3","Feeder 4","Feeder 5","Feeder 6","Feeder 7","Feeder 8","Feeder 9","Feeder 10","Unit of Measurement"]
["Solar and Battery Inverter","EQUIVALENT FEEDER INFORMATION"]
[null,"6.01.","Total  Length of Each Feeder ",null,null,null,null,null,null,null,null,null,null,null,null,null,null,null,null,null,null,"(km)"]
[null,"6.02.","Cable % of the Feeder Length ",null,null,null,null,null,null,null,null,null,null,null,null,null,null,null,null,null,null,"(%)"]
[null,"6.03.","Feeder Base Voltage",null,null,null,null,null,null,null,null,null,null,null,null,null,null,null,null,null,null,"(kV)"]
[null,"6.04.","Feeder Equivalent Positive Sequence Resistance                                                 ",null,null,null,null,null,null,null," (R)",null,null,null,null,null,null,null,null,null,null,"(Ohms)"]
[null,"6.05.","Feeder Equivalent Positive Sequence Reactance                                                ",null,null,null,null,null,null,null," (X)",null,null,null,null,null,null,null,null,null,null,"(Ohms)"]
[null,"6.06.","Feeder Equivalent Zero Sequence Resistance                                                      ",null,null,null,null,null,null,null,"(R0)",null,null,null,null,null,null,null,null,null,null,"(Ohms)"]
[null,"6.07.","Feeder Equivalent Zero Sequence Reactance                                                      ",null,null,null,null,null,null,null,"(X0)",null,null,null,null,null,null,null,null,null,null,"(Ohms)"]
[null,"6.08.","Feeder Equivalent Charging                                                                                      ",null,null,null,null,null,null,null,"(B)",null,null,null,null,null,null,null,null,null,null,"(uMhos)"]
[null,"6.09.","Total number of individual solar inverters  on each Feeder"]
[null,"6.10.","Total number of individual inverters for battery energy storage system  on each Feeder"]
[null,"6.11.","Inverter Model Names (Name1, Name2 etc. if more than one name)"]
[null,"6.12.","Number of Inverter Models on each Feeder"]
[null,"Equivalent Inverter model for each feeder (excluding var effect of shunt equipment at collector buses)",null,null,null,null,null,null,null,null,null,null,null,null,null,null,null,null,null,null,null,""]
[null,"6.13.","Nominal Terminal Voltage",null,null,null,null,null,null,null,null,null,null,null,null,null,null,null,null,null,null,"(kV)"]
[null,"6.14.","Equivalent Total Rated MVA (AC)                                                        ",null,null,null,null,null,null,null,null,null,null,null,null,null,null,null,null,null,null,"(MVA)"]
[null,"6.15.","Equivalent Total Rated MW Capacity (AC)                                                          ",null,null,null,null,null,null,null,null,null,null,null,null,null,null,null,null,null,null,"(MW)"]
[null,"6.16.","Equivalent Total Peak DC Capability, Sum of All PV Arrays Capabilities                ",null,null,null,null,null,null,null,null,null,null,null,null,null,null,null,null,null,null,"(MW)"]
[null,"6.17.","Equivalent Reactive Power Range at Zero MW Generation                                    ",null,null,null,null,null,null,null," (+Q, -Q)",null,null,null,null,null,null,null,null,null,null,"(Mvar)"]
[null,"6.18.","Equivalent Reactive Power Range at Rated MW Generation                        ",null,null,null,null,null,null,null," (+Q, -Q)",null,null,null,null,null,null,null,null,null,null,"(Mvar)"]
[null,"6.19.","Provide Power Flow Model and Data in PSS/E format (v33 or Higher)",null,null,null,null,null,null,null,null,"Attach file","Attach file","Attach file","Attach file","Attach file","Attach file","Attach file","Attach file","Attach file","Attach file",""]
[null,"6.20.","Dynamic Model Type: Standard Library [SL] or User Written [UW]",null,null,null,null,null,null,null,null,null,null,null,null,null,null,null,null,null,null,""]
[null,"6.21.","Dynamic Model Access: Proprietary [P] or Non-proprietary [NP]",null,null,null,null,null,null,null,null,null,null,null,null,null,null,null,null,null,null,""]
[null,"6.22.","Attach Equivalent Inverter Dynamic Model and Parameter Data in PSS/E format (v33 or higher) for Transient Stability Studies.",null,null,null,null,null,null,null,null,"Attach file","Attach file","Attach file","Attach file","Attach file","Attach file","Attach file","Attach file","Attach file","Attach file",""]
[null,"SOLAR AND BATTERY INVERTER INFORMATION",null,null,null,null,null,null,null,null,null,null,null,null,null,null,null,null,null,null,null,""]
[null,"For each inverter model provide the following information:",null,null,null,null,null,null,null,null,null,"Model 1","Model 2","Model 3","Model 4","Model 5","Model 6","Model 7","Model 8","Model 9","Model 10",""]
[null,"6.23.","Solar and Battery Inverter Manufacturer Name",null,null,null,null,null,null,null,null,null,null,null,null,null,null,null,null,null,null,""]
[null,"6.24.","Manufacturer Model Name",null,null,null,null,null,null,null,null,null,null,null,null,null,null,null,null,null,null,""]
[null,"6.25.","Expected average high ambient temperature for the site",null,null,null,null,null,null,null,null,null,null,null,null,null,null,null,null,null,null,"(°C)"]
[null,"6.26.","Maximum Active Power Output",null,null,null,null,null,null,null,null,null,null,null,null,null,null,null,null,null,null,"(MW)"]
[null,"6.27.","Individual Inverter Rated MVA",null,null,null,null,null,null,null,null,null,null,null,null,null,null,null,null,null,null,"(MVA)"]
[null,"6.28.","Individual Inverter Rated MW ",null,null,null,null,null,null,null,null,null,null,null,null,null,null,null,null,null,null,"(MW)"]
[null,"6.29.","Individual Inverter power factor at rated MW"]
[null,"6.30.","Inverter Reactive Power Range at Zero MW Generation and at the expected ambient temperature                                                                                                             ",null,null,null,null,null,null,null,"    (+Q, -Q)",null,null,null,null,null,null,null,null,null,null,"(Mvar)"]
[null,"6.31.","Inverter Reactive Power Range at Rated MW Generation and at the expected ambient temperature                           ",null,null,null,null,null,null,null,"    (+Q, -Q)",null,null,null,null,null,null,null,null,null,null,"(Mvar)"]
[null,"6.32.","Attach Capability Curves describing reactive power or power factor range from 0 to max MW generation for each inverter model",null,null,null,null,null,null,null,null,"Attach file","Attach file","Attach file","Attach file","Attach file","Attach file","Attach file","Attach file","Attach file","Attach file"]
[null,"6.33.","Will the inverter go into momentary cessation during system fault conditions? (momentary cessation, i.e. connected to the grid but not injecting any current into the grid,  is not allowed for newly interconnecting generators.)"]
[null,"6.34.","  If no above, fill out the following "]
[null,"6.35.","Describe inverter control during the system fault conditions. Provide information regarding control freeze, priority between active and reactive currents, master controller vs local control, etc. Include the voltage regulation proportional gain (k-factor) of the reactive current.",null,null,null,null,null,null,null,null,"Attach file","Attach file","Attach file","Attach file","Attach file","Attach file","Attach file","Attach file","Attach file","Attach file"]
[null,"6.36.","Does the inverter lock itself out after certain numbers of tripping during a given period? If yes, please describe the number of trips to lock-out and how the inverter restores operation.",null,null,null,null,null,null,null,null,"Attach file","Attach file","Attach file","Attach file","Attach file","Attach file","Attach file","Attach file","Attach file","Attach file"]
[null,"6.37.","Once tripped, what is the return ramp rate in %/second at what MVA base?",null,null,null,null,null,null,null,null,"Attach file","Attach file","Attach file","Attach file","Attach file","Attach file","Attach file","Attach file","Attach file","Attach file"]
[null,"6.38.","Maximum Current (in multiples of full-load current):                                                                                   "]
[null,"6.38.1.","   V (pu) threshold for current limiting",null,null,null,null,null,null,null,null,null,null,null,null,null,null,null,null,null,null,"(pu)"]
[null,"6.38.2.","   If V (pu) above V (pu) threshold , Max I equals",null,null,null,null,null,null,null,null,null,null,null,null,null,null,null,null,null,null,"(pu)"]
[null,"6.38.3.","   If V (pu) below V (pu) threshold , Max I equals",null,null,null,null,null,null,null,null,null,null,null,null,null,null,null,null,null,null,"(pu)"]
[null,"6.39.","Slope of positive sequence dynamic reactive-current injection characteristics"]
[null,"6.40.","Slope of negative sequence dynamic reactive-current injection characteristics"]
[null,"6.41.","Generator shutdown when a phase voltage exceeds ",null,null,null,null,null,null,null,null,null,null,null,null,null,null,null,null,null,null,"(pu)"]
[null,"6.42.","Generator shutdown when a phase voltage drops below",null,null,null,null,null,null,null,null,null,null,null,null,null,null,null,null,null,null,"(pu)"]
[null,"ENERGY STORAGE INFORMATION ",null,null,null,null,null,null,null,null,null,null,null,null,null,null,null,null,null,null,null,""]
[null,"Storage device specification data (name)",null,null,null,null,null,null,null,null,null,"BAT Unit 1","BAT Unit 2","BAT Unit 3","BAT Unit 4","BAT Unit 5","BAT Unit 6","BAT Unit 7","BAT Unit 8","BAT Unit 9","BAT Unit 10",""]
[null,"6.43.","The source of charging (transmission grid, AC side on-site generator only, DC side charging only, etc)        ",null,null,null,null,null,null,null,null,null,null,null,null,null,null,null,null,null,null,""]
[null,"6.44.","For a project with the energy storage, provide a schedule sheet in an attached file and write the file name in the cell here. The schedule sheet needs to specify the expected hourly power outputs/consumptions from the entire project for a typical day or period, which may be provided upon different seasons if necessary.                                                                                                                                                                         Please note that the power outputs from the entire installation shall have no time in exceeding the proposed maximum power injection or a proposed power consumption for applicable periods."]
[null,"6.45.","Total Storage Capability",null,null,null,null,null,null,null,null,null,null,null,null,null,null,null,null,null,null,"(MWh)"]
[null,"6.46.","Charge/Discharge Cycle Efficiency ",null,null,null,null,null,null,null,null,null,null,null,null,null,null,null,null,null,null,"(%)"]
[null,"6.47.","Rated Storage Discharging Power",null,null,null,null,null,null,null,null,null,null,null,null,null,null,null,null,null,null,"(MW)"]
[null,"6.48.","Discharge Duration under Rated Power",null,null,null,null,null,null,null,null,null,null,null,null,null,null,null,null,null,null,"(Hours)"]
[null,"6.49.","Maximum Storage Discharging Power",null,null,null,null,null,null,null,null,null,null,null,null,null,null,null,null,null,null,"(MW)"]
[null,"6.50.","Discharge Duration under Maximum Power",null,null,null,null,null,null,null,null,null,null,null,null,null,null,null,null,null,null,"(Hours)"]
[null,"6.51.","Rated Storage Charging Power",null,null,null,null,null,null,null,null,null,null,null,null,null,null,null,null,null,null,"(MW)"]
[null,"6.52.","Charge Duration under Rated Power",null,null,null,null,null,null,null,null,null,null,null,null,null,null,null,null,null,null,"(Hours)"]
[null,"6.53.","Maximum Storage Charging Power",null,null,null,null,null,null,null,null,null,null,null,null,null,null,null,null,null,null,"(MW)"]
[null,"6.54.","Charge Duration under Maximum Power",null,null,null,null,null,null,null,null,null,null,null,null,null,null,null,null,null,null,"(Hours)"]
[null,"6.55.","Requested Storage Charging Power (gross charging power to be studied at the terminal)",null,null,null,null,null,null,null,null,null,null,null,null,null,null,null,null,null,null,"(MW)"]
[null,"6.56.","Primary Frequency Response Operating Range"]
[null,"6.57.","                           Minimum State of Charge",null,null,null,null,null,null,null,null,null,null,null,null,null,null,null,null,null,null,"(%)"]
[null,"6.58.","                           Maximum State of Charge",null,null,null,null,null,null,null,null,null,null,null,null,null,null,null,null,null,null,"(%)"]
[null,"POWER PLANT CONTROLLER INFORMATION",null,null,null,null,null,null,null,null,null,null,null,null,null,null,null,null,null,null,null,""]
[null,"6.59.","Is there a Power Plant Controller (PPC)",null,null,null,null,null,null,null,null,null,null,null,null,null,null,null,null,null,null,""]
[null,"6.60.","PPC manufacturer",null,null,null,null,null,null,null,null,null,null,null,null,null,null,null,null,null,null,""]
[null,"   PPC VOLTAGE/VAR CONTROL",null,null,null,null,null,null,null,null,null,null,null,null,null,null,null,null,null,null,null,""]
[null,"6.61.","Plant level voltage/Var control mode under continuous normal conditions (Power factor control mode, Voltage control mode, Reactive Power control mode, Coordinated Voltage and Q Control Mode, or other)"]
[null,"6.62.","Plant level voltage/Var control mode under abnormal conditions (Power factor control mode, Voltage control mode, Reactive Power control mode, Coordinated Voltage and Q Control Mode, or other)"]
[null,"6.63.","Does the PPC freeze voltage/Var control at low voltage?"]
[null,"6.64.","    If yes above, enter the voltage at which PPC freezes",null,null,null,null,null,null,null,null,null,null,null,null,null,null,null,null,null,null,"(p.u.)"]
[null,"6.65.","Does the PPC implement voltage droop control?"]
[null,"6.66.","    If yes above, enter the voltage droop",null,null,null,null,null,null,null,null,null,null,null,null,null,null,null,null,null,null,"(%)"]
[null,"6.67.","Provide a general description of the control coordination among inverters, reactive devices and transformer tap changers",null,null,null,null,null,null,null,null,"Attach file","Attach file","Attach file","Attach file","Attach file","Attach file","Attach file","Attach file","Attach file","Attach file"]
[null,"   PPC FREQUENCY/MW CONTROL"]
[null,"6.68.","Does the PPC controls overall primary frequency response capability"]
[null,"6.69.","If yes above, will the PPC maintain headroom for upward frequency response (increasing output for low frequency)?"]
[null,"6.70.","Describe how the MW at Point of Interconnection is controlled.",null,null,null,null,null,null,null,null,"Attach file","Attach file","Attach file","Attach file","Attach file","Attach file","Attach file","Attach file","Attach file","Attach file"]
[null,"6.71.","MW upward ramp rate limit (enter a positive number)",null,null,null,null,null,null,null,null,null,null,null,null,null,null,null,null,null,null,"(MW/min)"]
[null,"6.72.","MW downward ramp rate limit (enter a negative number)",null,null,null,null,null,null,null,null,null,null,null,null,null,null,null,null,null,null,"(MW/min)"]
[null,"REACTIVE COMPENSATION INFORMATION"]
[null,"6.73.","Reactive Power Compensation at Collector and Switching Stations: Provide a description of the overall reactive power control scheme including co-ordination between inverters, mechanically switched and continuously acting reactive power devices (such as STATCOM or SVC). Please specify the following items if available: 1) Var control capability range at the POI based on maximum project MW output. 2) Will a closed loop voltage control scheme be provided? 3)  Where is the voltage regulation point (e.g. 34.5 kV collector bus)? 4) Is the power factor control mode available? 5)  Is the reactive power control mode available?  ",null,null,null,null,null,null,null,null,null,null,null,null,null,null,null,null,null,"Attach file"]
[null,"Mechanically-switched shunt capacitors connected to collector station buses:",null,null,null,null,null,null,null,null,null,"Capacitor 1","Capacitor 2","Capacitor 3","Capacitor 4","Capacitor 5","Capacitor 6","Capacitor 7","Capacitor 8","Capacitor 9","Capacitor 10"]
[null,"6.74.","Shunt Capacitor Size",null,null,null,null,null,null,null,null,null,null,null,null,null,null,null,null,null,null,"(Mvar)"]
[null,"6.75.","Shunt Capacitor Rated Voltage ",null,null,null,null,null,null,null,null,null,null,null,null,null,null,null,null,null,null,"(kV)"]
[null,"6.76.","Voltage Relay Settings to Switch Shunt Capacitors: "]
[null,"6.76.1","               Cut-in Voltage Level ",null,null,null,null,null,null,null,null,null,null,null,null,null,null,null,null,null,null,"(kV)"]
[null,"6.76.2","               Cut-in Time Delay",null,null,null,null,null,null,null,null,null,null,null,null,null,null,null,null,null,null,"(sec)"]
[null,"6.76.3","               Cut-out Voltage Level",null,null,null,null,null,null,null,null,null,null,null,null,null,null,null,null,null,null,"(kV)"]
[null,"6.76.4","               Cut-out Time Delay",null,null,null,null,null,null,null,null,null,null,null,null,null,null,null,null,null,null,"(sec)"]
[null,"6.76.5","               Re-insertion Time Delay",null,null,null,null,null,null,null,null,null,null,null,null,null,null,null,null,null,null,"(sec)"]
[null,"Mechanically-switched shunt reactors connected to collector station buses:",null,null,null,null,null,null,null,null,null,"Reactor 1","Reactor 2","Reactor 3","Reactor 4","Reactor 5","Reactor 6","Reactor 7","Reactor 8","Reactor 9","Reactor 10"]
[null,"6.77.","Shunt Reactor Size",null,null,null,null,null,null,null,null,null,null,null,null,null,null,null,null,null,null,"(Mvar)"]
[null,"6.78.","Shunt Reactor Rated Voltage",null,null,null,null,null,null,null,null,null,null,null,null,null,null,null,null,null,null,"(kV)"]
[null,"6.79.","Voltage Relay Settings to Switched Shunt Reactors: "]
[null,"6.79.1","               Cut-in Voltage Level",null,null,null,null,null,null,null,null,null,null,null,null,null,null,null,null,null,null,"(kV)"]
[null,"6.79.2","               Cut-in Time Delay",null,null,null,null,null,null,null,null,null,null,null,null,null,null,null,null,null,null,"(sec)"]
[null,"6.79.3","               Cut-out Voltage Level",null,null,null,null,null,null,null,null,null,null,null,null,null,null,null,null,null,null,"(kV)"]
[null,"6.79.4","               Cut-out Time Delay",null,null,null,null,null,null,null,null,null,null,null,null,null,null,null,null,null,null,"(sec)"]
[null,"Dynamic Reactive Power Devices"]
[null,"Provide PSS/E  (v33 or higher) model and corresponding parameters for power flow and transient stability studies.",null,null,null,null,null,null,null,null,null,"Var Device 1","Var Device 2","Var Device 3","Var Device 4","Var Device 5","Var Device 6","Var Device 7","Var Device 8","Var Device 9","Var Device 10"]
[null,"6.80.","Type of the Device and Name, e.g. SVC, STATCOM etc."]
[null,"6.81.","Rated Voltage",null,null,null,null,null,null,null,null,null,null,null,null,null,null,null,null,null,null,"(kV)"]
[null,"6.82.","Rated Capacity",null,null,null,null,null,null,null,null,null,null,null,null,null,null,null,null,null,null,"(Mvar)"]
[null,"6.83.","Steady State Var Range                                                                                      ",null,null,null,null,null,null,null,"   (+Q, -Q)",null,null,null,null,null,null,null,null,null,null,"(Mvar)"]
[null,"6.84.","Dynamic Var Range, if applicable (e.g. for STATCOM)                             ",null,null,null,null,null,null,null,"   (+Q, -Q)",null,null,null,null,null,null,null,null,null,null,"(Mvar)"]
[null,"6.85.","Provide Power Flow Model and Data per PSS/E requirement (v33 or higher)",null,null,null,null,null,null,null,null,"Attach file","Attach file","Attach file","Attach file","Attach file","Attach file","Attach file","Attach file","Attach file","Attach file"]
[null,"6.86.","Dynamic Model Type [Standard Library (SL) or User-Written (UW)]"]
[null,"6.87.","Model access: Proprietary [P] or Non-proprietary [NP]"]
[null,"6.88.","Attach dynamic model and data as per PSS/E requirement (v33 or higher); Also provide oneline diagram of the device.",null,null,null,null,null,null,null,null,"Attach file","Attach file","Attach file","Attach file","Attach file","Attach file","Attach file","Attach file","Attach file","Attach file"]
[null,"PRIMARY FREQUENCY RESPONSE INFORMATION"]
[null,"6.89.","Interconnection Customer is required to install a governor or equivalent controls with the capability of operating: (1) with a maximum 5 percent droop and +/-0.036Hz deadband; or (2) in accordance with the relevant droop, deadband, and timely and sustained response settings form an approved NERC Reliability Standard providing for equivalent or more stringent paramenters.Refer to FERC Order 842 for more detail.  ",null,null,null,null,null,null,null,null,null,null,null,null,null,null,null,null,null,"Attach file"]
[null,"Inverter",null,null,null,null,null,null,null,null,null,"PV Unit","BAT Unit"]
[null,"6.90.","Upward frequency response droop (increase output for low frequency)",null,null,null,null,null,null,null,null,null,null,null,null,null,null,null,null,null,null,"(%)"]
[null,"6.91.","Downward frequency response droop (reduce output for high frequency)",null,null,null,null,null,null,null,null,null,null,null,null,null,null,null,null,null,null,"(%)"]
[null,"6.92.","MW base for the droop above",null,null,null,null,null,null,null,null,null,null,null,null,null,null,null,null,null,null,"(MW)"]
[null,"6.93.","Frequency response deadband                                                                              ",null,null,null,null,null,null,null," (+/-)",null,null,null,null,null,null,null,null,null,null,"(Hz)"]
[]
["Note: Additional information is requested in other sections such as generator step-up transformers in section 7, main and other transformers in section 8, transmission lines in section 10 , single line diagrams and other diagrams in section 12 etc."]
[]
[]
[]
[]
[]
[]
[]
[null,null,null,null,null,null,"\\"]

{"sheet":"Step Up","index":5,"n_rows":47,"n_cols":22,"rows_kept":47,"cut":false,"hidden":false,"merged":[[26,3,26,9],[27,3,27,9],[28,3,28,9],[29,3,29,9],[22,2,22,10],[45,2,45,10],[46,2,46,10],[39,2,39,10],[40,2,40,10],[41,2,41,10],[42,2,42,10],[13,2,13,10],[14,2,14,10],[15,2,15,10],[43,2,43,10],[44,2,44,10],[33,3,33,10],[34,3,34,10],[35,3,35,10],[36,3,36,10],[31,3,31,9],[32,2,32,10],[30,3,30,9],[18,2,18,10],[19,2,19,10],[20,2,20,10],[25,2,25,10],[16,2,16,10],[17,2,17,10],[5,0,5,10],[37,3,37,10],[38,3,38,10],[6,0,46,0],[6,2,6,10],[7,2,7,10],[8,2,8,10],[9,2,9,10],[10,2,10,10],[11,2,11,10],[21,2,21,10],[23,2,23,10],[24,2,24,10],[12,2,12,10]]}
[null,null,null,null,null,null,null,null,null,null,null,null,null,null,null,null,null,null,null,null,null,{"$f":"Instructions!F1","v":"Interconnection Request - Generator Interconnection Data Form"}]
[null,null,null,null,null,null,null,null,null,null,null,null,null,null,null,null,null,null,null,null,null,{"$f":"Instructions!F2","v":"Transmission Voltages 60 kV to 500 kV"}]
[null,null,null,null,null,null,null,null,null,null,null,null,null,null,null,null,null,null,null,null,null,{"$f":"Instructions!F3","v":"Form Version: 1.1"}]
["Section 7 Instructions: Orange cells are required information, as applicable. Include optional information in white cells if available.",null,null,null,null,null,null,null,null,null,null,null,null,null,null,null,null,null,null,"Required","Optional"]
[]
["Section 7 - Transformer (Generator Step Up) Information",null,null,null,null,null,null,null,null,null,null,"Step Up 1","Step Up 2","Step Up 3","Step Up 4","Step Up 5","Step Up 6","Step Up 7","Step Up 8","Step Up 9","Step Up 10","Unit of Measurement"]
["Transformer - Step Up","7.01.","Unit Designation (For a wind farm project, provide data for each different transformer only once. Indicate the units' designations such as T1-T10 etc.)"]
[null,"7.02.","Manufacturer"]
[null,"7.03.","Model"]
[null,"7.04.","Serial Number"]
[null,"7.05.","MVA Ratings:"]
[null,"7.05.1","     Maximum rating",null,null,null,null,null,null,null,null,null,null,null,null,null,null,null,null,null,null,"(MVA)"]
[null,"7.05.2","     Natural cooled rating",null,null,null,null,null,null,null,null,null,null,null,null,null,null,null,null,null,null,"(MVA)"]
[null,"7.05.3","     Stage 1 cooling",null,null,null,null,null,null,null,null,null,null,null,null,null,null,null,null,null,null,"(MVA)"]
[null,"7.05.4","     Stage 2 cooling",null,null,null,null,null,null,null,null,null,null,null,null,null,null,null,null,null,null,"(MVA)"]
[null,"7.05.5","     Stage 3 cooling",null,null,null,null,null,null,null,null,null,null,null,null,null,null,null,null,null,null,"(MVA)"]
[null,"7.06.","HV Basic Insulation Level",null,null,null,null,null,null,null,null,null,null,null,null,null,null,null,null,null,null,"(kV)"]
[null,"7.07.","Voltage - HV winding",null,null,null,null,null,null,null,null,null,null,null,null,null,null,null,null,null,null,"(kV)"]
[null,"7.08.","Voltage - LV winding",null,null,null,null,null,null,null,null,null,null,null,null,null,null,null,null,null,null,"(kV)"]
[null,"7.09.","Voltage - TV winding (N/A for 2-winding transformer)",null,null,null,null,null,null,null,null,null,null,null,null,null,null,null,null,null,null,"(kV)"]
[null,"7.10.","Connection - HV winding (YG - solidly gnded Y,  Others please explain by attaching info in 12.09)"]
[null,"7.11.","Connection - LV winding (D-delta, Y-Wye, YG - solidly gnded Y, YRG - resist. gnded Y, YZG - imped. gnd Y)"]
[null,"7.12.","Connection - TV winding (D-delta, Others please explain by attaching info in 12.09)"]
[null,"7.13.","Grounding Impedance - HV winding",null,null,null,null,null,null,null,null,null,null,null,null,null,null,null,null,null,null,"(ohms)"]
[null,"7.14.","Grounding Impedance - LV winding",null,null,null,null,null,null,null,null,null,null,null,null,null,null,null,null,null,null,"(ohms)"]
[null,"7.15.","Leakage Impedances (% on ONAN rating):"]
[null,"7.15.1",null,"High to Low - Positive Sequence ",null,null,null,null,null,null,"Z1HL",null,null,null,null,null,null,null,null,null,null,"(%)"]
[null,"7.15.2",null,"High to Tertiary - Positive Sequence (N/A for 2-winding transformer)",null,null,null,null,null,null,"Z1HT",null,null,null,null,null,null,null,null,null,null,"(%)"]
[null,"7.15.3",null,"Low to Tertiary - Positive Sequence (N/A for 2-winding transformer)",null,null,null,null,null,null,"Z1LT",null,null,null,null,null,null,null,null,null,null,"(%)"]
[null,"7.15.4",null,"High to Low - Zero Sequence (Z0HL for 3-Winding or Z0H for 2-Winding)",null,null,null,null,null,null,"Z0HL  or Z0H",null,null,null,null,null,null,null,null,null,null,"(%)"]
[null,"7.15.5",null,"High to Tertiary - Zero Sequence (N/A for 2-winding transformer)",null,null,null,null,null,null,"Z0HT",null,null,null,null,null,null,null,null,null,null,"(%)"]
[null,"7.15.6",null,"Low to Tertiary - Zero Sequence (Z0LT for 3-Winding or Z0L for 2-Winding)",null,null,null,null,null,null,"Z0LT  or Z0L",null,null,null,null,null,null,null,null,null,null,"(%)"]
[null,"7.16.","Bases used for Impedances (Base MVA should be natural cooled rating ONAN)"]
[null,"7.16.1",null,"Base Voltage - HV ",null,null,null,null,null,null,null,null,null,null,null,null,null,null,null,null,null,"(kV)"]
[null,"7.16.2",null,"Base Voltage - LV ",null,null,null,null,null,null,null,null,null,null,null,null,null,null,null,null,null,"(kV)"]
[null,"7.16.3",null,"Base Voltage - TV (3-winding transformer only)",null,null,null,null,null,null,null,null,null,null,null,null,null,null,null,null,null,"(kV)"]
[null,"7.16.4",null,"Base MVA for Z1HL and Z0HL",null,null,null,null,null,null,null,null,null,null,null,null,null,null,null,null,null,"(MVA)"]
[null,"7.16.5",null,"Base MVA for Z1HT and Z0HT (N/A for 2-winding transformer)",null,null,null,null,null,null,null,null,null,null,null,null,null,null,null,null,null,"(MVA)"]
[null,"7.16.6",null,"Base MVA for Z1LT and Z0LT (N/A for 2-winding transformer)",null,null,null,null,null,null,null,null,null,null,null,null,null,null,null,null,null,"(MVA)"]
[null,"7.17.","Tap changer location (HV or LV)"]
[null,"7.18.","Tap changer type (Load or Off-Load)"]
[null,"7.19.","Number of Taps above nominal"]
[null,"7.20.","Number of Taps below nominal"]
[null,"7.21.","Tap step (if in %)",null,null,null,null,null,null,null,null,null,null,null,null,null,null,null,null,null,null,"(%)"]
[null,"7.22.","Tap step (if in volts)",null,null,null,null,null,null,null,null,null,null,null,null,null,null,null,null,null,null,"(Volts)"]
[null,"7.23.","No-load Losses",null,null,null,null,null,null,null,null,null,null,null,null,null,null,null,null,null,null,"(kW)"]
[null,"7.24.","Full-load losses",null,null,null,null,null,null,null,null,null,null,null,null,null,null,null,null,null,null,"(kW)"]

{"sheet":"Main & Other Transformers","index":6,"n_rows":47,"n_cols":16,"rows_kept":47,"cut":false,"hidden":false,"merged":[[5,0,5,9],[6,0,46,0],[6,2,6,9],[7,2,7,9],[17,2,17,9],[8,2,8,9],[9,2,9,9],[10,2,10,9],[45,2,45,9],[31,3,31,8],[36,3,36,9],[37,3,37,9],[38,3,38,9],[15,2,15,9],[16,2,16,9],[24,2,24,9],[14,2,14,9],[23,2,23,9],[26,3,26,8],[30,3,30,8],[11,2,11,9],[12,2,12,9],[13,2,13,9],[28,3,28,8],[29,3,29,8],[25,2,25,9],[18,2,18,9],[19,2,19,9],[20,2,20,9],[46,2,46,9],[40,2,40,9],[41,2,41,9],[21,2,21,9],[22,2,22,9],[27,3,27,8],[35,3,35,9],[39,2,39,9],[42,2,42,9],[43,2,43,9],[44,2,44,9],[33,3,33,9],[34,3,34,9],[32,2,32,9]]}
[null,null,null,null,null,null,null,null,null,null,null,null,null,null,null,{"$f":"Instructions!F1","v":"Interconnection Request - Generator Interconnection Data Form"}]
[null,null,null,null,null,null,null,null,null,null,null,null,null,null,null,{"$f":"Instructions!F2","v":"Transmission Voltages 60 kV to 500 kV"}]
[null,null,null,null,null,null,null,null,null,null,null,null,null,null,null,{"$f":"Instructions!F3","v":"Form Version: 1.1"}]
["Section 8 Instructions: Orange cells are required information, as applicable. Include optional information in white cells if available.",null,null,null,null,null,null,null,null,null,null,null,null,"Required","Optional"]
[]
["Section 8 - Other Transformer Information",null,null,null,null,null,null,null,null,null,"Transformer 1","Transformer 2","Transformer 3","Transformer 4","Transformer 5","Unit of Measurement"]
["Other Transformer ","8.01.","Unit Designation"]
[null,"8.02.","Manufacturer"]
[null,"8.03.","Model"]
[null,"8.04.","Serial Number"]
[null,"8.05.","MVA Ratings:"]
[null,"8.05.1","     Maximum rating",null,null,null,null,null,null,null,null,null,null,null,null,"(MVA)"]
[null,"8.05.2","     Natural cooled rating",null,null,null,null,null,null,null,null,null,null,null,null,"(MVA)"]
[null,"8.05.3","     Stage 1 cooling",null,null,null,null,null,null,null,null,null,null,null,null,"(MVA)"]
[null,"8.05.4","     Stage 2 cooling",null,null,null,null,null,null,null,null,null,null,null,null,"(MVA)"]
[null,"8.05.5","     Stage 3 cooling",null,null,null,null,null,null,null,null,null,null,null,null,"(MVA)"]
[null,"8.06.","HV Basic Insulation Level",null,null,null,null,null,null,null,null,null,null,null,null,"(kV)"]
[null,"8.07.","Voltage - HV winding",null,null,null,null,null,null,null,null,null,null,null,null,"(kV)"]
[null,"8.08.","Voltage - LV winding",null,null,null,null,null,null,null,null,null,null,null,null,"(kV)"]
[null,"8.09.","Voltage - TV winding (N/A for 2-winding transformer)",null,null,null,null,null,null,null,null,null,null,null,null,"(kV)"]
[null,"8.10.","Connection - HV winding (YG - solidly gnded Y,  A - Auto, Others please explain by attaching info in 12.09)"]
[null,"8.11.","Connection - LV winding (D-delta, Y-Wye, YG - solidly gnded Y, YRG - resist. gnded Y, YZG - imped. gnd Y, A - Auto)"]
[null,"8.12.","Connection - TV winding (D-delta, Others please explain by attaching info in 12.09)"]
[null,"8.13.","Grounding Impedance - HV winding",null,null,null,null,null,null,null,null,null,null,null,null,"(ohms)"]
[null,"8.14.","Grounding Impedance - LV winding",null,null,null,null,null,null,null,null,null,null,null,null,"(ohms)"]
[null,"8.15.","Leakage Impedances (% on ONAN rating):"]
[null,"8.15.1",null,"High to Low - Positive Sequence",null,null,null,null,null,"Z1HL",null,null,null,null,null,"(%)"]
[null,"8.15.2",null,"High to Tertiary - Positive Sequence (N/A for 2-winding transformer)",null,null,null,null,null,"Z1HT",null,null,null,null,null,"(%)"]
[null,"8.15.3",null,"Low to Tertiary - Positive Sequence (N/A for 2-winding transformer)",null,null,null,null,null,"Z1LT",null,null,null,null,null,"(%)"]
[null,"8.15.4",null,"High to Low - Zero Sequence (Z0HL for 3-Winding or Z0H for 2-Winding)",null,null,null,null,null,"Z0HL  or Z0H",null,null,null,null,null,"(%)"]
[null,"8.15.5",null,"High to Tertiary - Zero Sequence (N/A for 2-winding transformer)",null,null,null,null,null,"Z0HT",null,null,null,null,null,"(%)"]
[null,"8.15.6",null,"Low to Tertiary - Zero Sequence (Z0LT for 3-Winding or Z0L for 2-Winding)",null,null,null,null,null,"Z0LT  or Z0L",null,null,null,null,null,"(%)"]
[null,"8.16.","Bases used for Impedances (Base MVA should be natural cooled rating ONAN)"]
[null,"8.16.1",null,"Base Voltage - HV ",null,null,null,null,null,null,null,null,null,null,null,"(kV)"]
[null,"8.16.2",null,"Base Voltage - LV",null,null,null,null,null,null,null,null,null,null,null,"(kV)"]
[null,"8.16.3",null,"Base Voltage - TV (3-winding transformer only)",null,null,null,null,null,null,null,null,null,null,null,"(kV)"]
[null,"8.16.4",null,"Base MVA for Z1HL and Z0HL",null,null,null,null,null,null,null,null,null,null,null,"(MVA)"]
[null,"8.16.5",null,"Base MVA for Z1HT and Z0HT (N/A for 2-winding transformer)",null,null,null,null,null,null,null,null,null,null,null,"(MVA)"]
[null,"8.16.6",null,"Base MVA for Z1LT and Z0LT (N/A for 2-winding transformer)",null,null,null,null,null,null,null,null,null,null,null,"(MVA)"]
[null,"8.17.","Tap changer location (HV or LV)"]
[null,"8.18.","Tap changer type (Load or Off-Load)"]
[null,"8.19.","Number of Taps above nominal"]
[null,"8.20.","Number of Taps below nominal"]
[null,"8.21.","Tap step (if in %)",null,null,null,null,null,null,null,null,null,null,null,null,"(%)"]
[null,"8.22.","Tap step (if in volts)",null,null,null,null,null,null,null,null,null,null,null,null,"(Volts)"]
[null,"8.23.","No-load Losses",null,null,null,null,null,null,null,null,null,null,null,null,"(kW)"]
[null,"8.24.","Full-load losses",null,null,null,null,null,null,null,null,null,null,null,null,"(kW)"]

{"sheet":"Breaker","index":7,"n_rows":20,"n_cols":17,"rows_kept":20,"cut":false,"hidden":false,"merged":[[14,2,14,10],[15,2,15,10],[5,0,5,10],[6,0,19,0],[6,2,6,10],[7,2,7,10],[8,2,8,10],[9,2,9,10],[16,2,16,10],[17,2,17,10],[18,2,18,10],[19,2,19,10],[10,2,10,10],[11,2,11,10],[12,2,12,10],[13,2,13,10]]}
[null,null,null,null,null,null,null,null,null,null,null,null,null,null,null,null,{"$f":"Instructions!F1","v":"Interconnection Request - Generator Interconnection Data Form"}]
[null,null,null,null,null,null,null,null,null,null,null,null,null,null,null,null,{"$f":"Instructions!F2","v":"Transmission Voltages 60 kV to 500 kV"}]
[null,null,null,null,null,null,null,null,null,null,null,null,null,null,null,null,{"$f":"Instructions!F3","v":"Form Version: 1.1"}]
["Section 9 Instructions: Orange cells are required information, as applicable. Include optional information in white cells if available.",null,null,null,null,null,null,null,null,null,null,null,null,null,"Required","Optional"]
[]
["Section 9 - HV Circuit Breaker Information",null,null,null,null,null,null,null,null,null,null,"Breaker 1","Breaker 2","Breaker 3","Breaker 4","Breaker 5","Unit of Measurement"]
["HV Circuit Breaker","9.01.","Unit Designation"]
[null,"9.02.","Manufacturer"]
[null,"9.03.","Model"]
[null,"9.04.","Serial Number"]
[null,"9.05.","Interrupting Media (e.g.. oil, air, SF6)"]
[null,"9.06.","Year of Manufacture"]
[null,"9.07.","Rated maximum voltage",null,null,null,null,null,null,null,null,null,null,null,null,null,"(kV)"]
[null,"9.08.","Rated Frequency",null,null,null,null,null,null,null,null,null,null,null,null,null,"(Hz)"]
[null,"9.09.","Basic impulse level (BIL)",null,null,null,null,null,null,null,null,null,null,null,null,null,"(kV)"]
[null,"9.10.","Rated continuous current",null,null,null,null,null,null,null,null,null,null,null,null,null,"(A)"]
[null,"9.11.","Momentary (1/2 cycle) current withstand capability",null,null,null,null,null,null,null,null,null,null,null,null,null,"(kA crest)"]
[null,"9.12.","Rated symmetrical short circuit interrupting capability",null,null,null,null,null,null,null,null,null,null,null,null,null,"(kA RMS sym.)"]
[null,"9.13.","Interrupting time",null,null,null,null,null,null,null,null,null,null,null,null,null,"(cycles)"]
[null,"9.14.","Out-of-phase switching capability",null,null,null,null,null,null,null,null,null,null,null,null,null,"(kA RMS sym.)"]

{"sheet":"Line","index":8,"n_rows":36,"n_cols":22,"rows_kept":36,"cut":false,"hidden":false,"merged":[[6,0,6,20],[32,2,32,10],[33,2,33,10],[15,2,15,10],[29,2,29,10],[30,2,30,10],[23,2,23,10],[24,2,24,10],[25,2,25,10],[22,2,22,10],[11,2,11,10],[12,2,12,10],[13,2,13,10],[14,2,14,10],[31,2,31,10],[7,0,35,0],[7,2,7,10],[8,2,8,10],[9,2,9,10],[26,2,26,10],[16,2,16,10],[17,2,17,10],[18,2,18,10],[19,2,19,10],[20,2,20,10],[27,2,27,10],[28,2,28,10],[35,2,35,10],[34,2,34,10],[10,2,10,10],[21,2,21,10]]}
[null,null,null,null,null,null,null,null,null,null,null,null,null,null,null,null,null,null,null,null,null,{"$f":"Instructions!F1","v":"Interconnection Request - Generator Interconnection Data Form"}]
[null,null,null,null,null,null,null,null,null,null,null,null,null,null,null,null,null,null,null,null,null,{"$f":"Instructions!F2","v":"Transmission Voltages 60 kV to 500 kV"}]
[null,null,null,null,null,null,null,null,null,null,null,null,null,null,null,null,null,null,null,null,null,{"$f":"Instructions!F3","v":"Form Version: 1.1"}]
["Section 10 Instructions: Orange cells are required information, as applicable. Include optional information in white cells if available.",null,null,null,null,null,null,null,null,null,null,null,null,null,null,null,null,null,null,"Required","Optional"]
[]
["Section 10 - Transmission Line Information \n",null,null,null,null,null,null,null,null,null,null,"Line 1","Line 2","Line 3","Line 4","Line 5","Line 6","Line 7","Line 8","Line 9","Line 10","Unit of Measurement"]
["Note: The per km typical impedance value given in item 10.08.1 to 10.08.6 are for overhead lines only. If there are underground or underwater circuits please provide applicable physical parameters; provide at least the line length, voltage, conductor type and size, total impedance, admittance and ratings."]
["Transmission Line","10.01.","Line Length",null,null,null,null,null,null,null,null,null,null,null,null,null,null,null,null,null,null,"km"]
[null,"10.02.","Interconnection Voltage",null,null,null,null,null,null,null,null,null,null,null,null,null,null,null,null,null,null,"kV"]
[null,"10.03.","Conductor Type (ACSR, AAC, AAAC, ACAR, etc)"]
[null,"10.04.","Code Word (i.e. Hawk, Partridge, Orchid, Cottonwood, etc)"]
[null,"10.05.","Number of conductors per phase (i.e. 1, 2, etc)"]
[null,"10.06.","Conductor Size (in either kcmil, AWG or mm and select unit of measure in 10.06.1):"]
[null,"10.06.1","Conductor Size Unit of Measure in either kcmil, AWG or mm (see 10.06):"]
[null,"10.07.","Geometric Mean Radius @ 60 Hz (GMR)",null,null,null,null,null,null,null,null,null,null,null,null,null,null,null,null,null,null,"feet"]
[null,"10.08.","Transmission Line Impedances"]
[null,"10.08.1","   Positive Sequence Resistance (per km typical 60 kV is 0.239, 138 kV is 0.134, 230 kV is 0.066)      R1",null,null,null,null,null,null,null,null,null,null,null,null,null,null,null,null,null,null,"ohms"]
[null,"10.08.2","   Zero Sequence Resistance (per km typical 60 kV is 0.417, 138 kV is 0.312, 230 kV is 0.244)            R0",null,null,null,null,null,null,null,null,null,null,null,null,null,null,null,null,null,null,"ohms"]
[null,"10.08.3","   Positive Sequence Reactance (per km typical 60 kV is 0.423, 138 kV is 0.483, 230 kV is 0.482)       X1",null,null,null,null,null,null,null,null,null,null,null,null,null,null,null,null,null,null,"ohms"]
[null,"10.08.4","   Zero Sequence Reactance (per km typical 60 kV is 1.812, 138 kV is 1.628, 230 kV is 1.569)             X0",null,null,null,null,null,null,null,null,null,null,null,null,null,null,null,null,null,null,"ohms"]
[null,"10.08.5","   Positive Sequence Charging  (per km typical 60 kV is 3.873, 138 kV is 3.399, 230 kV is 3.440)        Y1",null,null,null,null,null,null,null,null,null,null,null,null,null,null,null,null,null,null,"µMHO"]
[null,"10.08.6","   Zero Sequence Charging (per km typical 60 kV is 1.702, 138 kV is 2.026, 230 kV is 2.154)               Y0",null,null,null,null,null,null,null,null,null,null,null,null,null,null,null,null,null,null,"µMHO"]
[null,"10.09.","Line Clearances to Ground - Max.",null,null,null,null,null,null,null,null,null,null,null,null,null,null,null,null,null,null,"m"]
[null,"10.10.","Line Clearances to Ground - Min.",null,null,null,null,null,null,null,null,null,null,null,null,null,null,null,null,null,null,"m"]
[null,"10.11.","Maximum Tower/Pole Height:",null,null,null,null,null,null,null,null,null,null,null,null,null,null,null,null,null,null,"m"]
[null,"10.12.","Minimum Tower/Pole Height:",null,null,null,null,null,null,null,null,null,null,null,null,null,null,null,null,null,null,"m"]
[null,"10.13.","Line Continuous Rating - Summer (May to October) at ambient temperature 30°C",null,null,null,null,null,null,null,null,null,null,null,null,null,null,null,null,null,null,"A"]
[null,"10.14.","Line Overload Rating - Summer (May to October) 30°C provide only if generation exceeds summer continuous line rating.",null,null,null,null,null,null,null,null,null,null,null,null,null,null,null,null,null,null,"A"]
[null,"10.15.","Line Continuous Rating - Winter (November to April) at ambient temperature 0°C",null,null,null,null,null,null,null,null,null,null,null,null,null,null,null,null,null,null,"A"]
[null,"10.16.","Line Overload Rating - Winter (November to April)  0°C provide only if generation exceeds winter continuous line rating.",null,null,null,null,null,null,null,null,null,null,null,null,null,null,null,null,null,null,"A"]
[null,"10.17.","Conductor Phase Spacing, A-B",null,null,null,null,null,null,null,null,null,null,null,null,null,null,null,null,null,null,"m"]
[null,"10.18.","Conductor Phase Spacing, B-C",null,null,null,null,null,null,null,null,null,null,null,null,null,null,null,null,null,null,"m"]
[null,"10.19.","Conductor Phase Spacing, C-A",null,null,null,null,null,null,null,null,null,null,null,null,null,null,null,null,null,null,"m"]
[null,"10.20.","Average Conductor Height Above Ground for the Lowest Conductor",null,null,null,null,null,null,null,null,null,null,null,null,null,null,null,null,null,null,"m"]
[null,"10.21.","Length of skywire (if any)."]
[null,"10.22.","Typical Tower / Pole Configuration drawings that show height above ground of all conductor attachment points.",null,null,null,null,null,null,null,null,"Attach file","Attach file","Attach file","Attach file","Attach file","Attach file","Attach file","Attach file","Attach file","Attach file"]

{"sheet":"Protection","index":9,"n_rows":20,"n_cols":17,"rows_kept":20,"cut":false,"hidden":false,"merged":[[18,13,18,14],[18,15,18,16],[8,13,8,14],[9,13,9,14],[10,13,10,14],[11,13,11,14],[12,13,12,14],[13,13,13,14],[14,13,14,14],[15,13,15,14],[16,13,16,14],[12,15,12,16],[13,15,13,16],[14,15,14,16],[15,15,15,16],[16,15,16,16],[17,15,17,16],[7,13,7,14],[7,15,7,16],[8,15,8,16],[9,15,9,16],[10,15,10,16],[11,15,11,16],[17,13,17,14],[13,5,13,8],[13,9,13,12],[14,5,14,8],[14,9,14,12],[7,5,7,8],[11,5,11,8],[11,9,11,12],[8,5,8,8],[12,5,12,8],[7,9,7,12],[12,9,12,12],[8,9,8,12],[9,5,9,8],[9,9,9,12],[10,5,10,8],[10,9,10,12],[15,9,15,12],[16,9,16,12],[17,5,17,8],[17,9,17,12],[18,5,18,8],[18,9,18,12],[16,5,16,8],[15,1,15,4],[16,1,16,4],[17,1,17,4],[18,1,18,4],[15,5,15,8],[5,0,5,16],[13,1,13,4],[6,13,6,14],[6,0,19,0],[19,1,19,16],[6,1,6,4],[6,5,6,8],[6,9,6,12],[6,15,6,16],[7,1,7,4],[8,1,8,4],[9,1,9,4],[10,1,10,4],[11,1,11,4],[12,1,12,4],[14,1,14,4]]}
[null,null,null,null,null,null,null,null,null,null,null,null,null,null,null,null,{"$f":"Instructions!F1","v":"Interconnection Request - Generator Interconnection Data Form"}]
[null,null,null,null,null,null,null,null,null,null,null,null,null,null,null,null,{"$f":"Instructions!F2","v":"Transmission Voltages 60 kV to 500 kV"}]
[null,null,null,null,null,null,null,null,null,null,null,null,null,null,null,null,{"$f":"Instructions!F3","v":"Form Version: 1.1"}]
["Section 11 Instructions: Orange cells are required information, as applicable. Include optional information in white cells if available.",null,null,null,null,null,null,null,null,null,null,null,null,null,"Required","Optional"]
[]
["Section 11 - Protection Information"]
["Protection","Relay",null,null,null,"Manufacturer",null,null,null,"Model",null,null,null,"Timed Element\nSetting Range",null,"Inst. Element\nSetting Range"]
[null,"11.01.   Ground Overcurrent"]
[null,"11.02.   Phase Overcurrent"]
[null,"11.03.   Over Frequency"]
[null,"11.04.   Under Frequency"]
[null,"11.05.   Over Voltage"]
[null,"11.06.   Under Voltage"]
[null,"11.07.  Transformer Differential"]
[null,"11.08.   Generator Differential"]
[null,"11.09.   Bus Differential"]
[null,"11.10.  Synchronizing Check"]
[null,"11.11.  Reverse Power"]
[null,"11.12.  Line "]
[null," Protection Current transformers must be adequate for all fault duty magnitudes."]

{"sheet":"Drawings","index":10,"n_rows":60,"n_cols":17,"rows_kept":60,"cut":false,"hidden":false,"merged":[[52,9,52,10],[30,2,31,16],[34,9,34,10],[61,3,61,15],[16,2,16,7],[17,2,17,7],[18,2,18,7],[49,11,49,15],[57,2,57,16],[24,2,24,9],[25,2,25,9],[28,9,28,10],[27,2,27,7],[34,11,34,15],[33,2,33,7],[43,11,43,15],[21,2,21,7],[22,2,22,7],[40,11,40,15],[46,11,46,15],[28,11,28,15],[12,2,12,16],[7,2,7,7],[8,11,8,15],[14,2,14,16],[15,9,15,10],[15,11,15,15],[6,1,6,16],[5,0,5,16],[7,11,7,16],[8,9,8,10],[10,2,10,16],[6,0,62,0],[51,2,51,7],[54,2,55,16],[36,2,37,16],[40,9,40,10],[43,9,43,10],[46,9,46,10],[52,11,52,15],[49,9,49,10],[19,2,19,7],[20,2,20,7]]}
[null,null,null,null,null,null,null,null,null,null,null,null,null,null,null,null,{"$f":"Instructions!F1","v":"Interconnection Request - Generator Interconnection Data Form"}]
[null,null,null,null,null,null,null,null,null,null,null,null,null,null,null,null,{"$f":"Instructions!F2","v":"Transmission Voltages 60 kV to 500 kV"}]
[null,null,null,null,null,null,null,null,null,null,null,null,null,null,null,null,{"$f":"Instructions!F3","v":"Form Version: 1.1"}]
["Section 12 Instructions: Orange cells are required information, as applicable. Include optional information in white cells if available.",null,null,null,null,null,null,null,null,null,null,null,null,null,"Required","Optional"]
[]
["Section 12 - Drawing Information: Please provide the following drawings digitally in Portable Document Format (PDF). \nNote: Electric symbols and format shall be in accordance with North American (ANSI/IEEE) drawing practices"]
["Drawings"]
[null,"12.01.1","A-C SINGLE LINE (ONE-LINE) DIAGRAM: "]
[null,null,null,null,null,null,null,null,null,"Drawing Number: "]
[]
[null,null,"This diagram must clearly show all major station equipment such as generators, transformers, circuit breakers, disconnect switches, capacitors, reactors, surge arresters,  motor loads, static loads (MW with power factor), current transformers (CT's), voltage transformers (VT's), capacitive voltage transformers (CVT's). Their ratings should be clearly identified on the diagram. "]
[]
[null,null,"For a wind farm or a solar farm the one line diagram should show the transmission lines, connection to the BCH system, collector station equipment, and the equivalent of  each feeder with the number of Wind Turbine Generators (WTG) or Solar PV generators identified. Refer to the WECC Wind Power Plant Power Flow Modeling Guide and WECC Solar Photovoltaic Power Plant Modeling and Validation to develop the feeder equivalent as suggested in the Instructions Section of this form. "]
[]
[null,"12.01.2","Motor detail is not required for Feasibility Study."]
[]
[null,null,"Note [1]:  Based on the interpretation of the IEEE standards"]
[null,null,"C37.010-1979 and C37.5-1979, the motor groupings are as follows:",null,null,null,null,null,null,null,null,"Example:  Motor Load Table."]
[null,null,"Group 1 - Induction motors smaller than 50 hp - neglect",null,null,null,null,null,null,null,null,"Type","Induction","Induction","Induction","Synchronous"]
[null,null,"Group 2 - Induction motors 50 hp and above",null,null,null,null,null,null,null,null,"Group",2,3,4,5]
[null,null,"Group 3 - Induction motors 250 hp and above at 3600 rpm",null,null,null,null,null,null,null,null,"H.P.","125 *","1500 *",1000,5000]
[null,null,"Group 4 - Induction motors 1000 hp and above at 1800 rpm or less",null,null,null,null,null,null,null,null,"kV rated","575V","2400V","4160V",13800]
[null,null,"Group 5 - All synchronous motors",null,null,null,null,null,null,null,null,"X'd (pu) **"," --"," --"," --",0.15]
[null,null,null,null,null,null,null,null,null,null,null,"X\"d (pu) **",0.17,0.17,0.17,0.09]
[null,null,"For groups 2 and 3, the net hp for each group need only be provided.  ",null,null,null,null,null,null,null,null,"X/R",10,10,25,38]
[null,null,"For groups 4 and 5, please provide information on each of the motors individually.",null,null,null,null,null,null,null,null,null,"* - net horsepower",null,"** - pu of machine kVA rating."]
[]
[null,"12.02.","PROTECTION ONE-LINE (METERING & RELAYING) DIAGRAM: "]
[null,null,null,null,null,null,null,null,null,"Drawing Number: "]
[]
[null,null,"This document is an extension of the A-C Single Line Diagram.  It should show all the protective relaying, metering, major control and telecommunications interface to tie in the generator, transformer and plant protection with the transmission line protection schemes.  This document should also provide the CT & VT ratios and accuracy classes."]
[]
[]
[null,"12.03.","PROJECT OVERALL ELECTRICAL SINGLE LINE DIAGRAM:"]
[null,null,null,null,null,null,null,null,null,"Drawing Number: "]
[]
[null,null,"The diagram should show all generators, transformers, circuit breakers, transmission connections and associated electrical parameters and data not shown elsewhere in the data sheets. If a HVDC system is involved in the interconnection, the diagram should include the DC system and associated electrical parameters and data for power flow studies."]
[]
[]
[null,"12.04.","Not Used"]
[null,null,null,null,null,null,null,null,null,"Drawing Number: "]
[]
[null,"12.05.","Not Used"]
[null,null,null,null,null,null,null,null,null,"Drawing Number: "]
[]
[null,"12.06.","Not Used"]
[null,null,null,null,null,null,null,null,null,"Drawing Number: "]
[]
[null,"12.07.","Not Used"]
[null,null,null,null,null,null,null,null,null,"Drawing Number: "]
[]
[null,"12.08.","SITE LOCATION MAP:"]
[null,null,null,null,null,null,null,null,null,"Drawing Number: "]
[]
[null,null,"This document should include topographical details and proximity to the BCH system.  It should also include the longitude and latitude of the customer's generation facility and the approximate longitude and latitude of the proposed point of interconnection (POI) into a BCH transmission system line that is also shown on the diagram.  The length of the interconnecting customer's new transmission line should correspond to the data item 10.01 Line Length."]
[]
[]
[null,null,"For the wind and solar farms, the topology diagram should be provided as well, which clearly shows the geographic locations of generators, feeders, collector stations and switching stations if applicable."]
[]
[null,"12.09.","Other Information - Project Narrative"]

{"sheet":"Sealing","index":11,"n_rows":22,"n_cols":17,"rows_kept":22,"cut":false,"hidden":false,"merged":[[19,2,20,6],[20,8,20,11],[20,13,20,15],[5,1,5,16],[6,1,6,16],[7,1,7,7],[8,1,13,7],[8,10,8,15],[10,10,10,15],[12,10,12,15]]}
[null,null,null,null,null,null,null,null,null,null,null,null,null,null,null,null,{"$f":"Instructions!F1","v":"Interconnection Request - Generator Interconnection Data Form"}]
[null,null,null,null,null,null,null,null,null,null,null,null,null,null,null,null,{"$f":"Instructions!F2","v":"Transmission Voltages 60 kV to 500 kV"}]
[null,null,null,null,null,null,null,null,null,null,null,null,null,null,null,null,{"$f":"Instructions!F3","v":"Form Version: 1.1"}]
["Sealing Instructions: Orange cells are required information. Interconnection Customer to leave \"BC Hydro Use Only\" section blank.",null,null,null,null,null,null,null,null,null,null,null,null,null,"Required","Optional"]
[]
[null,"Sealing (by Interconnection Customer)"]
[null,"The Engineer of Record declares that the data submitted herein meets the requirements of this document."]
[null,"Seal of Professional Engineer of British Columbia"]
[null,null,null,null,null,null,null,null,null,"Print Name:"]
[]
[null,null,null,null,null,null,null,null,null,"Signature:"]
[]
[null,null,null,null,null,null,null,null,null,"Date:"]
[]
[]
[null," BC Hydro Use Only"]
[]
[null,"The undersigned BC Hydro Transmission Generator Interconnections representative has received this Combined Study Agreement - Generator Interconnection Data Form."]
[]
[]
[]
[null,null,"Signature",null,null,null,null,null,"Name",null,null,null,null,"Date & Time Received"]